{"text_format":"1","workbook":"xlsx","n_sheets":11,"sheets":["Raw APP Audit ","All","Swimming Pools","Studios","Health and Fitness","Sports Halls","Squash","Indoor Bowls","Gymnastics","Facility Assessment","Sheet1"],"not_rendered":{"charts":0,"images":0,"macros":0,"external_links":1,"defined_names":5,"comments":0,"pivot_tables":0},"unopened":[],"bounds":{"document_bytes":16777216,"sheet_cells":100000,"rows_first":2000,"rows_last":500,"rows_between":2000,"halvings":0,"cell_chars":16384,"cell_head_chars":4096},"cells_cut":0,"cells_raw":0,"read":"whole","date_system":"1900"}

{"sheet":"Raw APP Audit ","index":0,"n_rows":105,"n_cols":46,"rows_kept":105,"cut":false,"hidden":false,"merged":[]}
["--- Search Terms ---"]
["Area of interest","Epping Forest District"]
["Facility Type","Health and Fitness Suite"," Facility Sub Type"," Health and Fitness Suite"]
["Facility Type","Indoor Bowls"," Facility Sub Type"," Indoor Bowls"]
["Facility Type","Sports Hall"," Facility Sub Type"," Activity Hall"," Barns"," Main"]
["Facility Type","Squash Courts"," Facility Sub Type"," Glass-backed"," Normal"]
["Facility Type","Studio"," Facility Sub Type"," Studio"]
["Facility Type","Swimming Pool"," Facility Sub Type"," Diving"," Learner/Teaching/Training"," Leisure Pool"," Lido"," Main/General"]
["Facility Status","Under Construction;Operational;Temporarily Closed"]
[]
["--- Report Summary ---"]
["Facility Type","Sub Facility Type","Epping Forest District","Total"]
["Health and Fitness Suite","Health and Fitness Suite",16,16]
["Indoor Bowls","Indoor Bowls",1,1]
["Sports Hall","Activity Hall",9,9]
["Sports Hall","Barns",0,0]
["Sports Hall","Main",9,9]
["Squash Courts","Glass-backed",1,1]
["Squash Courts","Normal",9,9]
["Studio","Studio",15,15]
["Swimming Pool","Diving",0,0]
["Swimming Pool","Learner/Teaching/Training",4,4]
["Swimming Pool","Leisure Pool",0,0]
["Swimming Pool","Lido",5,5]
["Swimming Pool","Main/General",8,8]
["Total",null,77,77]
[]
["Generated on 26 Jun 2017 15:14:04"]
[]
["--- Main Report ---"]
["Site Name","Site Id","Building Name or Number","Thoroughfare","Post Town"," Post Code","Facility Type","Facility Sub Type","Facility Id","Unit","Number","Changing Rooms","Disability","Disability Details","Disability Notes","Facility Status","Access Type","Ownership Type","Management Type","Year Built","Refurbished","Year Refurbished","Closed Date","Last Updated Date","Last Full Audit Date","UPRN","TOID","Output Area Code","Lower Super Output Area Code","Middle Super Output Area Code","Parliamentary Constituency Code","Parliamentary Constituency Name","Ward Code","Ward Name","Local Authority Code","Local Authority Name","County Code","County Name","CSP Code","CSP Name","Region Code","Region Name","Easting","Northing","Latitude","Longitude"]
["ABRIDGE VILLAGE HALL",6021140,39,"Ongar Road","Romford","RM4 1UH","Sports Hall","Activity Hall",2090124,"Badminton courts",1,"Yes","Yes","Parking, Finding and reaching the entrance, Doorways, Activity areas, Toilets, Social areas, Emergency exits",null,"Operational","Sports Club / Community Association","Other","Trust",1993,"No","n/a","n/a","2016-10-07","2016-10-07","n/a","n/a","E00110592","E01021770","E02004536","E14000594","Brentwood and Ongar","E05004158","Lambourne","E07000072","Epping Forest","E10000012","Essex","CSP018","Active Essex","E15000006","Eastern",546988,197108,51.653551,0.123393]
["CHIGWELL SCHOOL",1204104,null,"High Road","Chigwell","IG7 6QF","Health and Fitness Suite","Health and Fitness Suite",2212881,"Stations",8,"Yes","Yes","Parking, Finding and reaching the entrance, Reception area, Doorways, Changing facilities, Activity areas, Toilets, Emergency exits",null,"Operational","Private Use","Other Independent School","School/College/University (in house)",1989,"No","n/a","n/a","2016-09-15","2016-09-15","n/a","n/a","E00110481","E01021750","E02004542","E14000693","Epping Forest","E05004151","Chigwell Village","E07000072","Epping Forest","E10000012","Essex","CSP018","Active Essex","E15000006","Eastern",544151,193880,51.625279999999997,8.1084000000000003E-2]
["CHIGWELL SCHOOL",1204104,null,"High Road","Chigwell","IG7 6QF","Sports Hall","Main",2212886,"Badminton courts",3,"Yes","Yes","Parking, Finding and reaching the entrance, Reception area, Doorways, Changing facilities, Activity areas, Toilets, Emergency exits",null,"Operational","Sports Club / Community Association","Other Independent School","School/College/University (in house)",1989,"No","n/a","n/a","2016-09-15","2016-09-15","n/a","n/a","E00110481","E01021750","E02004542","E14000693","Epping Forest","E05004151","Chigwell Village","E07000072","Epping Forest","E10000012","Essex","CSP018","Active Essex","E15000006","Eastern",544151,193880,51.625279999999997,8.1084000000000003E-2]
["CHIGWELL SCHOOL",1204104,null,"High Road","Chigwell","IG7 6QF","Sports Hall","Activity Hall",2212887,"Badminton courts",1,"Yes","Yes","Parking, Finding and reaching the entrance, Reception area, Doorways, Changing facilities, Activity areas, Toilets, Emergency exits",null,"Operational","Sports Club / Community Association","Other Independent School","School/College/University (in house)",1955,"No","n/a","n/a","2016-09-15","2016-09-15","n/a","n/a","E00110481","E01021750","E02004542","E14000693","Epping Forest","E05004151","Chigwell Village","E07000072","Epping Forest","E10000012","Essex","CSP018","Active Essex","E15000006","Eastern",544151,193880,51.625279999999997,8.1084000000000003E-2]
["CHIGWELL SCHOOL",1204104,null,"High Road","Chigwell","IG7 6QF","Swimming Pool","Lido",2212888,"Lanes",4,"Yes","Yes","Parking, Finding and reaching the entrance, Reception area, Doorways, Changing facilities, Activity areas, Toilets, Emergency exits",null,"Temporarily Closed","Private Use","Other Independent School","School/College/University (in house)","n/a","No","n/a","n/a","2016-09-15","2016-09-15","n/a","n/a","E00110481","E01021750","E02004542","E14000693","Epping Forest","E05004151","Chigwell Village","E07000072","Epping Forest","E10000012","Essex","CSP018","Active Essex","E15000006","Eastern",544151,193880,51.625279999999997,8.1084000000000003E-2]
["DAVENANT FOUNDATION SCHOOL",1204252,null,"Chester Road","Loughton","IG10 2LD","Health and Fitness Suite","Health and Fitness Suite",2039838,"Stations",16,"Yes","Yes","Parking, Finding and reaching the entrance, Reception area, Doorways, Changing facilities, Activity areas, Toilets, Emergency exits","Activity Areas: Hoist available for Swimming Pool.","Operational","Private Use","Academies","School/College/University (in house)",1999,"No","n/a","n/a","2016-11-28","2016-11-28","n/a","n/a","E00110613","E01021774","E02004537","E14000693","Epping Forest","E05004160","Loughton Broadway","E07000072","Epping Forest","E10000012","Essex","CSP018","Active Essex","E15000006","Eastern",544283.1,198030.7,51.662540999999997,8.4700999999999999E-2]
["DAVENANT FOUNDATION SCHOOL",1204252,null,"Chester Road","Loughton","IG10 2LD","Sports Hall","Main",2213537,"Badminton courts",3,"Yes","Yes","Parking, Finding and reaching the entrance, Reception area, Doorways, Changing facilities, Activity areas, Toilets, Emergency exits","Activity Areas: Hoist available for Swimming Pool.","Operational","Sports Club / Community Association","Academies","School/College/University (in house)",1999,"No","n/a","n/a","2016-11-28","2016-11-28","n/a","n/a","E00110613","E01021774","E02004537","E14000693","Epping Forest","E05004160","Loughton Broadway","E07000072","Epping Forest","E10000012","Essex","CSP018","Active Essex","E15000006","Eastern",544283.1,198030.7,51.662540999999997,8.4700999999999999E-2]
["DAVENANT FOUNDATION SCHOOL",1204252,null,"Chester Road","Loughton","IG10 2LD","Sports Hall","Activity Hall",2213538,"Badminton courts",1,"Yes","Yes","Parking, Finding and reaching the entrance, Reception area, Doorways, Changing facilities, Activity areas, Toilets, Emergency exits","Activity Areas: Hoist available for Swimming Pool.","Operational","Sports Club / Community Association","Academies","School/College/University (in house)",1999,"Yes",2003,"n/a","2016-11-28","2016-11-28","n/a","n/a","E00110613","E01021774","E02004537","E14000693","Epping Forest","E05004160","Loughton Broadway","E07000072","Epping Forest","E10000012","Essex","CSP018","Active Essex","E15000006","Eastern",544283.1,198030.7,51.662540999999997,8.4700999999999999E-2]
["DAVENANT FOUNDATION SCHOOL",1204252,null,"Chester Road","Loughton","IG10 2LD","Sports Hall","Activity Hall",2213539,"Badminton courts",1,"Yes","Yes","Parking, Finding and reaching the entrance, Reception area, Doorways, Changing facilities, Activity areas, Toilets, Emergency exits","Activity Areas: Hoist available for Swimming Pool.","Operational","Sports Club / Community Association","Academies","School/College/University (in house)",2000,"Yes",2005,"n/a","2016-11-28","2016-11-28","n/a","n/a","E00110613","E01021774","E02004537","E14000693","Epping Forest","E05004160","Loughton Broadway","E07000072","Epping Forest","E10000012","Essex","CSP018","Active Essex","E15000006","Eastern",544283.1,198030.7,51.662540999999997,8.4700999999999999E-2]
["DAVENANT FOUNDATION SCHOOL",1204252,null,"Chester Road","Loughton","IG10 2LD","Swimming Pool","Main/General",2213540,"Lanes",4,"Yes","Yes","Parking, Finding and reaching the entrance, Reception area, Doorways, Changing facilities, Activity areas, Toilets, Spectator areas, Emergency exits","Activity Areas: Hoist available for Swimming Pool.","Operational","Sports Club / Community Association","Academies","School/College/University (in house)",1999,"No","n/a","n/a","2016-11-28","2016-11-28","n/a","n/a","E00110613","E01021774","E02004537","E14000693","Epping Forest","E05004160","Loughton Broadway","E07000072","Epping Forest","E10000012","Essex","CSP018","Active Essex","E15000006","Eastern",544283.1,198030.7,51.662540999999997,8.4700999999999999E-2]
["DAVID LLOYD CLUB (CHIGWELL)",1000023,null,"Roding Lane","Buckhurst Hill","IG9 6BJ","Sports Hall","Activity Hall",2000043,"Badminton courts",2,"Yes","Yes","Parking, Finding and reaching the entrance, Reception area, Doorways, Changing facilities, Activity areas, Toilets, Social areas, Emergency exits","Parking: 10 bays","Operational","Registered Membership use","Commercial","Commercial Management",2002,"Yes",2014,"n/a","2016-12-30","2016-12-30","n/a","n/a","E00110480","E01021750","E02004542","E14000693","Epping Forest","E05004151","Chigwell Village","E07000072","Epping Forest","E10000012","Essex","CSP018","Active Essex","E15000006","Eastern",542871.72,194263.49,51.629052000000001,6.2771999999999994E-2]
["DAVID LLOYD CLUB (CHIGWELL)",1000023,null,"Roding Lane","Buckhurst Hill","IG9 6BJ","Indoor Bowls","Indoor Bowls",2008861,"Rinks",7,"Yes","Yes","Parking, Finding and reaching the entrance, Reception area, Doorways, Changing facilities, Activity areas, Toilets, Social areas, Emergency exits","Parking: 10 bays","Operational","Registered Membership use","Commercial","Commercial Management",1992,"Yes",2004,"n/a","2016-12-30","2016-12-30","n/a","n/a","E00110480","E01021750","E02004542","E14000693","Epping Forest","E05004151","Chigwell Village","E07000072","Epping Forest","E10000012","Essex","CSP018","Active Essex","E15000006","Eastern",542871.72,194263.49,51.629052000000001,6.2771999999999994E-2]
["DAVID LLOYD CLUB (CHIGWELL)",1000023,null,"Roding Lane","Buckhurst Hill","IG9 6BJ","Swimming Pool","Main/General",2009739,"Lanes",3,"Yes","Yes","Parking, Finding and reaching the entrance, Reception area, Doorways, Changing facilities, Activity areas, Toilets, Social areas, Emergency exits","Parking: 10 bays","Operational","Registered Membership use","Commercial","Commercial Management",1992,"Yes",2014,"n/a","2016-12-30","2016-12-30","n/a","n/a","E00110480","E01021750","E02004542","E14000693","Epping Forest","E05004151","Chigwell Village","E07000072","Epping Forest","E10000012","Essex","CSP018","Active Essex","E15000006","Eastern",542871.72,194263.49,51.629052000000001,6.2771999999999994E-2]
["DAVID LLOYD CLUB (CHIGWELL)",1000023,null,"Roding Lane","Buckhurst Hill","IG9 6BJ","Swimming Pool","Lido",2009740,"Lanes",1,"Yes","Yes","Parking, Finding and reaching the entrance, Reception area, Doorways, Changing facilities, Activity areas, Toilets, Social areas, Emergency exits","Parking: 10 bays","Operational","Registered Membership use","Commercial","Commercial Management",1992,"Yes",2002,"n/a","2016-12-30","2016-12-30","n/a","n/a","E00110480","E01021750","E02004542","E14000693","Epping Forest","E05004151","Chigwell Village","E07000072","Epping Forest","E10000012","Essex","CSP018","Active Essex","E15000006","Eastern",542871.72,194263.49,51.629052000000001,6.2771999999999994E-2]
["DAVID LLOYD CLUB (CHIGWELL)",1000023,null,"Roding Lane","Buckhurst Hill","IG9 6BJ","Health and Fitness Suite","Health and Fitness Suite",2014798,"Stations",145,"Yes","Yes","Parking, Finding and reaching the entrance, Reception area, Doorways, Changing facilities, Activity areas, Toilets, Social areas, Emergency exits","Parking: 10 bays","Operational","Registered Membership use","Commercial","Commercial Management",1992,"Yes",2014,"n/a","2016-12-30","2016-12-30","n/a","n/a","E00110480","E01021750","E02004542","E14000693","Epping Forest","E05004151","Chigwell Village","E07000072","Epping Forest","E10000012","Essex","CSP018","Active Essex","E15000006","Eastern",542871.72,194263.49,51.629052000000001,6.2771999999999994E-2]
["DAVID LLOYD CLUB (CHIGWELL)",1000023,null,"Roding Lane","Buckhurst Hill","IG9 6BJ","Studio","Studio",4000044,"Studios",0,"Yes","Yes","Parking, Finding and reaching the entrance, Reception area, Doorways, Changing facilities, Activity areas, Toilets, Social areas, Emergency exits","Parking: 10 bays","Operational","Registered Membership use","Commercial","Commercial Management",1992,"Yes",2014,"n/a","2016-12-30","2016-12-30","n/a","n/a","E00110480","E01021750","E02004542","E14000693","Epping Forest","E05004151","Chigwell Village","E07000072","Epping Forest","E10000012","Essex","CSP018","Active Essex","E15000006","Eastern",542871.72,194263.49,51.629052000000001,6.2771999999999994E-2]
["DAVID LLOYD CLUB (CHIGWELL)",1000023,null,"Roding Lane","Buckhurst Hill","IG9 6BJ","Studio","Studio",4000045,"Studios",0,"Yes","Yes","Parking, Finding and reaching the entrance, Reception area, Doorways, Changing facilities, Activity areas, Toilets, Social areas, Emergency exits","Parking: 10 bays","Operational","Registered Membership use","Commercial","Commercial Management",1992,"Yes",2014,"n/a","2016-12-30","2016-12-30","n/a","n/a","E00110480","E01021750","E02004542","E14000693","Epping Forest","E05004151","Chigwell Village","E07000072","Epping Forest","E10000012","Essex","CSP018","Active Essex","E15000006","Eastern",542871.72,194263.49,51.629052000000001,6.2771999999999994E-2]
["DEBDEN PARK HIGH SCHOOL",1008866,null,"Willingale Road","Loughton","IG10 2BQ","Sports Hall","Main",2007558,"Badminton courts",4,"Yes","Yes","Parking, Finding and reaching the entrance, Reception area, Doorways, Changing facilities, Activity areas, Toilets, Emergency exits",null,"Operational","Pay and Play","Academies","Other",2001,"Yes",2006,"n/a","2016-08-22","2016-08-22","n/a","n/a","E00110611","E01021775","E02004537","E14000693","Epping Forest","E05004160","Loughton Broadway","E07000072","Epping Forest","E10000012","Essex","CSP018","Active Essex","E15000006","Eastern",544585,197047,51.653624999999998,8.8655999999999999E-2]
["DEBDEN PARK HIGH SCHOOL",1008866,null,"Willingale Road","Loughton","IG10 2BQ","Studio","Studio",4078099,"Studios",0,"Yes","Yes","Parking, Finding and reaching the entrance, Reception area, Doorways, Changing facilities, Activity areas, Toilets, Emergency exits",null,"Operational","Pay and Play","Academies","Other",2001,"No","n/a","n/a","2016-08-22","2016-08-22","n/a","n/a","E00110611","E01021775","E02004537","E14000693","Epping Forest","E05004160","Loughton Broadway","E07000072","Epping Forest","E10000012","Essex","CSP018","Active Essex","E15000006","Eastern",544585,197047,51.653624999999998,8.8655999999999999E-2]
["EPPING FOREST COLLEGE",1204720,null,"Borders Lane","Loughton","IG10 3SA","Health and Fitness Suite","Health and Fitness Suite",2081634,"Stations",15,"Yes","Yes","Parking, Finding and reaching the entrance, Reception area, Doorways, Activity areas, Toilets, Emergency exits",null,"Operational","Private Use","Further Education","School/College/University (in house)",2007,"No","n/a","n/a","2016-12-05","2016-12-05","n/a","n/a","E00170069","E01021790","E02004538","E14000693","Epping Forest","E05004165","Loughton St Mary's","E07000072","Epping Forest","E10000012","Essex","CSP018","Active Essex","E15000006","Eastern",543687.5,196438.7,51.648389000000002,7.5441999999999995E-2]
["EPPING SPORTS CENTRE",1003733,25,"Hemnall Street","Epping","CM16 4LU","Sports Hall","Main",2002987,"Badminton courts",4,"Yes","Yes","Parking, Finding and reaching the entrance, Reception area, Doorways, Changing facilities, Activity areas, Toilets, Emergency exits",null,"Operational","Pay and Play","Local Authority","Commercial Management",1970,"No","n/a","n/a","2017-03-14","2017-03-14","n/a","n/a","E00110509","E01021758","E02004532","E14000693","Epping Forest","E05004153","Epping Hemnall","E07000072","Epping Forest","E10000012","Essex","CSP018","Active Essex","E15000006","Eastern",545887.69999999995,201811.65,51.696100000000001,0.109462]
["EPPING SPORTS CENTRE",1003733,25,"Hemnall Street","Epping","CM16 4LU","Health and Fitness Suite","Health and Fitness Suite",2017475,"Stations",46,"Yes","Yes","Parking, Finding and reaching the entrance, Reception area, Doorways, Changing facilities, Activity areas, Toilets, Emergency exits",null,"Operational","Pay and Play","Local Authority","Commercial Management",1970,"Yes",2006,"n/a","2017-03-14","2017-03-14","n/a","n/a","E00110509","E01021758","E02004532","E14000693","Epping Forest","E05004153","Epping Hemnall","E07000072","Epping Forest","E10000012","Essex","CSP018","Active Essex","E15000006","Eastern",545887.69999999995,201811.65,51.696100000000001,0.109462]
["EPPING SPORTS CENTRE",1003733,25,"Hemnall Street","Epping","CM16 4LU","Studio","Studio",4002988,"Studios",0,"Yes","Yes","Parking, Finding and reaching the entrance, Reception area, Doorways, Changing facilities, Activity areas, Toilets, Emergency exits",null,"Operational","Pay and Play","Local Authority","Commercial Management",1970,"No","n/a","n/a","2017-03-14","2017-03-14","n/a","n/a","E00110509","E01021758","E02004532","E14000693","Epping Forest","E05004153","Epping Hemnall","E07000072","Epping Forest","E10000012","Essex","CSP018","Active Essex","E15000006","Eastern",545887.69999999995,201811.65,51.696100000000001,0.109462]
["EPPING SPORTS CENTRE",1003733,25,"Hemnall Street","Epping","CM16 4LU","Squash Courts","Normal",4036865,"Courts",3,"Yes","Yes","Parking, Finding and reaching the entrance, Reception area, Doorways, Changing facilities, Activity areas, Toilets, Emergency exits",null,"Operational","Pay and Play","Local Authority","Commercial Management",1970,"Yes",2006,"n/a","2017-03-14","2017-03-14","n/a","n/a","E00110509","E01021758","E02004532","E14000693","Epping Forest","E05004153","Epping Hemnall","E07000072","Epping Forest","E10000012","Essex","CSP018","Active Essex","E15000006","Eastern",545887.69999999995,201811.65,51.696100000000001,0.109462]
["EPPING SPORTS CENTRE",1003733,25,"Hemnall Street","Epping","CM16 4LU","Squash Courts","Glass-backed",4040142,"Courts",1,"Yes","Yes","Parking, Finding and reaching the entrance, Reception area, Doorways, Changing facilities, Activity areas, Toilets, Emergency exits",null,"Operational","Pay and Play","Local Authority","Commercial Management",1970,"Yes",2006,"n/a","2017-03-14","2017-03-14","n/a","n/a","E00110509","E01021758","E02004532","E14000693","Epping Forest","E05004153","Epping Hemnall","E07000072","Epping Forest","E10000012","Essex","CSP018","Active Essex","E15000006","Eastern",545887.69999999995,201811.65,51.696100000000001,0.109462]
["EPPING ST JOHN'S",1203746,null,"Bury Lane","Epping","CM16 5JB","Sports Hall","Main",2211464,"Badminton courts",4,"Yes","Yes","Parking, Finding and reaching the entrance, Reception area, Doorways, Activity areas, Toilets, Emergency exits",null,"Operational","Sports Club / Community Association","Voluntary Controlled School","School/College/University (in house)",1921,"No","n/a","n/a","2016-11-22","2016-11-22","n/a","n/a","E00110547","E01021763","E02004531","E14000693","Epping Forest","E05004154","Epping Lindsey and Thornwood Common","E07000072","Epping Forest","E10000012","Essex","CSP018","Active Essex","E15000006","Eastern",545397,202114,0,0]
["EPPING ST JOHN'S",1203746,null,"Bury Lane","Epping","CM16 5JB","Sports Hall","Activity Hall",2211465,"Badminton courts",0,"Yes","Yes","Parking, Finding and reaching the entrance, Reception area, Doorways, Activity areas, Toilets, Emergency exits",null,"Operational","Sports Club / Community Association","Voluntary Controlled School","School/College/University (in house)",1921,"No","n/a","n/a","2016-11-22","2016-11-22","n/a","n/a","E00110547","E01021763","E02004531","E14000693","Epping Forest","E05004154","Epping Lindsey and Thornwood Common","E07000072","Epping Forest","E10000012","Essex","CSP018","Active Essex","E15000006","Eastern",545397,202114,0,0]
["GURU GOBIND SINGH KHALSA COLLEGE",1203672,null,"Roding Lane","Chigwell","IG7 6BQ","Sports Hall","Main",2211189,"Badminton courts",3,"Yes","Yes","Finding and reaching the entrance, Reception area, Doorways, Activity areas, Social areas, Spectator areas, Emergency exits",null,"Operational","Sports Club / Community Association","Other Independent School","School/College/University (in house)",1938,"No","n/a","n/a","2017-03-20","2017-03-20","n/a","n/a","E00110480","E01021750","E02004542","E14000693","Epping Forest","E05004151","Chigwell Village","E07000072","Epping Forest","E10000012","Essex","CSP018","Active Essex","E15000006","Eastern",542979,194070,51.627285999999998,6.4241999999999994E-2]
["JUBILEE PARK PAVILION",1038126,null,"Love Lane","Ongar","CM5 9BL","Squash Courts","Normal",4080867,"Courts",2,"Yes","Yes","Finding and reaching the entrance, Doorways, Activity areas, Social areas, Emergency exits",null,"Operational","Sports Club / Community Association","Local Authority","Local Authority (in house)",1976,"No","n/a","n/a","2017-05-30","2017-05-30","n/a","n/a","E00110495","E01021755","E02004530","E14000594","Brentwood and Ongar","E05004152","Chipping Ongar, Greensted and Marden Ash","E07000072","Epping Forest","E10000012","Essex","CSP018","Active Essex","E15000006","Eastern",555409.81000000006,203483.53,51.708567000000002,0.24787200000000001]
["KING HAROLD ACADEMY SPORTS CENTRE",1003780,null,"Broomstick Hall Road","Waltham Abbey","EN9 1LF","Sports Hall","Main",2003043,"Badminton courts",5,"Yes","Not Known",null,null,"Operational","Private Use","Academies","Not Known",1972,"Yes",2003,"n/a","2017-03-29","2017-03-29","n/a","n/a","E00110783","E01021807","E02004534","E14000693","Epping Forest","E05004175","Waltham Abbey Honey Lane","E07000072","Epping Forest","E10000012","Essex","CSP018","Active Essex","E15000006","Eastern",539530,200922,51.689720999999999,1.7180000000000001E-2]
["KING HAROLD ACADEMY SPORTS CENTRE",1003780,null,"Broomstick Hall Road","Waltham Abbey","EN9 1LF","Health and Fitness Suite","Health and Fitness Suite",2017504,"Stations",20,"Yes","Not Known",null,null,"Operational","Private Use","Academies","Not Known",1985,"No","n/a","n/a","2017-03-29","2017-03-29","n/a","n/a","E00110783","E01021807","E02004534","E14000693","Epping Forest","E05004175","Waltham Abbey Honey Lane","E07000072","Epping Forest","E10000012","Essex","CSP018","Active Essex","E15000006","Eastern",539530,200922,51.689720999999999,1.7180000000000001E-2]
["KING HAROLD ACADEMY SPORTS CENTRE",1003780,null,"Broomstick Hall Road","Waltham Abbey","EN9 1LF","Studio","Studio",4003044,"Studios",0,"Yes","Not Known",null,null,"Operational","Private Use","Academies","Not Known",2003,"No","n/a","n/a","2017-03-29","2017-03-29","n/a","n/a","E00110783","E01021807","E02004534","E14000693","Epping Forest","E05004175","Waltham Abbey Honey Lane","E07000072","Epping Forest","E10000012","Essex","CSP018","Active Essex","E15000006","Eastern",539530,200922,51.689720999999999,1.7180000000000001E-2]
["KING HAROLD ACADEMY SPORTS CENTRE",1003780,null,"Broomstick Hall Road","Waltham Abbey","EN9 1LF","Squash Courts","Normal",4036880,"Courts",2,"Yes","Not Known",null,null,"Operational","Private Use","Academies","Not Known",1972,"No","n/a","n/a","2017-03-29","2017-03-29","n/a","n/a","E00110783","E01021807","E02004534","E14000693","Epping Forest","E05004175","Waltham Abbey Honey Lane","E07000072","Epping Forest","E10000012","Essex","CSP018","Active Essex","E15000006","Eastern",539530,200922,51.689720999999999,1.7180000000000001E-2]
["KRUNCH GYM",1038033,"Ability House 121","Brooker Road","Waltham Abbey","EN9 1JH","Health and Fitness Suite","Health and Fitness Suite",2080459,"Stations",91,"Yes","Yes","Parking, Finding and reaching the entrance, Reception area, Doorways, Changing facilities, Activity areas, Toilets, Social areas, Emergency exits",null,"Operational","Registered Membership use","Commercial","Commercial Management",2008,"No","n/a","n/a","2017-03-27","2017-03-27","n/a","n/a","E00110844","E01021817","E02004534","E14000693","Epping Forest","E05004178","Waltham Abbey South West","E07000072","Epping Forest","E10000012","Essex","CSP018","Active Essex","E15000006","Eastern",538104.86,200053.88,51.682271999999998,-3.7680000000000001E-3]
["KRUNCH GYM",1038033,"Ability House 121","Brooker Road","Waltham Abbey","EN9 1JH","Studio","Studio",4080460,"Studios",0,"Yes","Yes","Parking, Finding and reaching the entrance, Reception area, Doorways, Changing facilities, Activity areas, Toilets, Social areas, Emergency exits",null,"Operational","Registered Membership use","Commercial","Commercial Management",2008,"No","n/a","n/a","2017-03-27","2017-03-27","n/a","n/a","E00110844","E01021817","E02004534","E14000693","Epping Forest","E05004178","Waltham Abbey South West","E07000072","Epping Forest","E10000012","Essex","CSP018","Active Essex","E15000006","Eastern",538104.86,200053.88,51.682271999999998,-3.7680000000000001E-3]
["LOUGHTON LEISURE CENTRE",1003751,null,"Traps Hill","Loughton","IG10 1SZ","Swimming Pool","Main/General",2011668,"Lanes",6,"Yes","Yes","Parking, Finding and reaching the entrance, Reception area, Doorways, Changing facilities, Activity areas, Toilets, Social areas, Spectator areas, Emergency exits",null,"Operational","Pay and Play","Local Authority","Commercial Management",2003,"No","n/a","n/a","2017-03-02","2017-03-02","n/a","n/a","E00110693","E01021791","E02004538","E14000693","Epping Forest","E05004165","Loughton St Mary's","E07000072","Epping Forest","E10000012","Essex","CSP018","Active Essex","E15000006","Eastern",542462.63,196413.5,51.648474,5.774E-2]
["LOUGHTON LEISURE CENTRE",1003751,null,"Traps Hill","Loughton","IG10 1SZ","Health and Fitness Suite","Health and Fitness Suite",2017485,"Stations",90,"Yes","Yes","Parking, Finding and reaching the entrance, Reception area, Doorways, Changing facilities, Activity areas, Toilets, Social areas, Spectator areas, Emergency exits",null,"Operational","Registered Membership use","Local Authority","Commercial Management",2003,"Yes",2011,"n/a","2017-03-02","2017-03-02","n/a","n/a","E00110693","E01021791","E02004538","E14000693","Epping Forest","E05004165","Loughton St Mary's","E07000072","Epping Forest","E10000012","Essex","CSP018","Active Essex","E15000006","Eastern",542462.63,196413.5,51.648474,5.774E-2]
["LOUGHTON LEISURE CENTRE",1003751,null,"Traps Hill","Loughton","IG10 1SZ","Swimming Pool","Learner/Teaching/Training",2021929,"Lanes",0,"Yes","Yes","Parking, Finding and reaching the entrance, Reception area, Doorways, Changing facilities, Activity areas, Toilets, Social areas, Spectator areas, Emergency exits",null,"Operational","Pay and Play","Local Authority","Commercial Management",2003,"No","n/a","n/a","2017-03-02","2017-03-02","n/a","n/a","E00110693","E01021791","E02004538","E14000693","Epping Forest","E05004165","Loughton St Mary's","E07000072","Epping Forest","E10000012","Essex","CSP018","Active Essex","E15000006","Eastern",542462.63,196413.5,51.648474,5.774E-2]
["LOUGHTON LEISURE CENTRE",1003751,null,"Traps Hill","Loughton","IG10 1SZ","Studio","Studio",4003007,"Studios",1,"Yes","Yes","Parking, Finding and reaching the entrance, Reception area, Doorways, Changing facilities, Activity areas, Toilets, Social areas, Spectator areas, Emergency exits",null,"Operational","Registered Membership use","Local Authority","Commercial Management",2003,"Yes",2010,"n/a","2017-03-02","2017-03-02","n/a","n/a","E00110693","E01021791","E02004538","E14000693","Epping Forest","E05004165","Loughton St Mary's","E07000072","Epping Forest","E10000012","Essex","CSP018","Active Essex","E15000006","Eastern",542462.63,196413.5,51.648474,5.774E-2]
["LOUGHTON LEISURE CENTRE",1003751,null,"Traps Hill","Loughton","IG10 1SZ","Studio","Studio",4109394,"Studios",1,"Yes","Yes","Parking, Finding and reaching the entrance, Reception area, Doorways, Changing facilities, Activity areas, Toilets, Social areas, Spectator areas, Emergency exits",null,"Operational","Registered Membership use","Local Authority","Commercial Management",2011,"No","n/a","n/a","2017-03-02","2017-03-02","n/a","n/a","E00110693","E01021791","E02004538","E14000693","Epping Forest","E05004165","Loughton St Mary's","E07000072","Epping Forest","E10000012","Essex","CSP018","Active Essex","E15000006","Eastern",542462.63,196413.5,51.648474,5.774E-2]
["MARRIOTT LEISURE CLUB (WALTHAM ABBEY)",1001420,null,"Old Shire Lane","Waltham Abbey","EN9 3LX","Swimming Pool","Main/General",2010545,"Lanes",0,"Yes","Yes","Parking, Finding and reaching the entrance, Reception area, Doorways, Changing facilities, Activity areas, Toilets, Emergency exits",null,"Operational","Registered Membership use","Commercial","Commercial Management",1988,"Yes",2008,"n/a","2017-06-21","2016-02-11","n/a","n/a","E00110782","E01021810","E02004534","E14000693","Epping Forest","E05004175","Waltham Abbey Honey Lane","E07000072","Epping Forest","E10000012","Essex","CSP018","Active Essex","E15000006","Eastern",540323,200031,51.681516999999999,2.8285999999999999E-2]
["MARRIOTT LEISURE CLUB (WALTHAM ABBEY)",1001420,null,"Old Shire Lane","Waltham Abbey","EN9 3LX","Health and Fitness Suite","Health and Fitness Suite",2016079,"Stations",18,"Yes","Yes","Parking, Finding and reaching the entrance, Reception area, Doorways, Changing facilities, Activity areas, Toilets, Emergency exits",null,"Operational","Registered Membership use","Commercial","Commercial Management",1988,"Yes",2011,"n/a","2017-06-21","2016-02-11","n/a","n/a","E00110782","E01021810","E02004534","E14000693","Epping Forest","E05004175","Waltham Abbey Honey Lane","E07000072","Epping Forest","E10000012","Essex","CSP018","Active Essex","E15000006","Eastern",540323,200031,51.681516999999999,2.8285999999999999E-2]
["MARRIOTT LEISURE CLUB (WALTHAM ABBEY)",1001420,null,"Old Shire Lane","Waltham Abbey","EN9 3LX","Swimming Pool","Learner/Teaching/Training",4106478,"Lanes",0,"Yes","Yes","Parking, Finding and reaching the entrance, Reception area, Doorways, Changing facilities, Activity areas, Toilets, Emergency exits",null,"Operational","Registered Membership use","Commercial","Commercial Management",1988,"Yes",2008,"n/a","2017-06-21","2016-02-11","n/a","n/a","E00110782","E01021810","E02004534","E14000693","Epping Forest","E05004175","Waltham Abbey Honey Lane","E07000072","Epping Forest","E10000012","Essex","CSP018","Active Essex","E15000006","Eastern",540323,200031,51.681516999999999,2.8285999999999999E-2]
["METROPOLITAN POLICE (CHIGWELL SPORTS CLUB)",1036199,null,"High Road","Chigwell","IG7 6BD","Health and Fitness Suite","Health and Fitness Suite",2073269,"Stations",11,"Yes","Yes","Parking, Finding and reaching the entrance, Reception area, Doorways, Changing facilities, Activity areas, Toilets, Social areas, Emergency exits",null,"Operational","Sports Club / Community Association","Government","Sport Club",1986,"Yes",2003,"n/a","2016-10-10","2016-10-10","n/a","n/a","E00110480","E01021750","E02004542","E14000693","Epping Forest","E05004151","Chigwell Village","E07000072","Epping Forest","E10000012","Essex","CSP018","Active Essex","E15000006","Eastern",543807,193823,51.624856000000001,7.6093999999999995E-2]
["METROPOLITAN POLICE (CHIGWELL SPORTS CLUB)",1036199,null,"High Road","Chigwell","IG7 6BD","Squash Courts","Normal",4073290,"Courts",2,"Yes","Yes","Parking, Finding and reaching the entrance, Reception area, Doorways, Changing facilities, Activity areas, Toilets, Social areas, Emergency exits",null,"Operational","Sports Club / Community Association","Government","Sport Club",1986,"No","n/a","n/a","2016-10-10","2016-10-10","n/a","n/a","E00110480","E01021750","E02004542","E14000693","Epping Forest","E05004151","Chigwell Village","E07000072","Epping Forest","E10000012","Essex","CSP018","Active Essex","E15000006","Eastern",543807,193823,51.624856000000001,7.6093999999999995E-2]
["NAZEING PRIMARY SCHOOL",30005067,null,"HYDE MEAD","WALTHAM ABBEY","EN9 2HS","Swimming Pool","Lido",30009459,"Lanes",0,"No","Yes","Finding and reaching the entrance, Emergency exits",null,"Operational","Private Use","Community school","School/College/University (in house)","n/a","No","n/a","n/a","2017-02-21","2017-02-21",10012159291,"osgb5000005179472946","E00110698","E01021794","E02004528","E14000729","Harlow","E05004166","Lower Nazeing","E07000072","Epping Forest","E10000012","Essex","CSP018","Active Essex","E15000006","Eastern",539273,205889,51.734416000000003,1.5447000000000001E-2]
["Nuffield Health Chigwell Fitness & Wellbeing Gym",1000562,"Woolston Manor","Abridge Road","Chigwell","IG7 6BX","Swimming Pool","Main/General",2010130,"Lanes",3,"Yes","Yes","Parking, Finding and reaching the entrance, Reception area, Doorways, Changing facilities, Activity areas, Toilets, Social areas, Spectator areas, Emergency exits",null,"Operational","Registered Membership use","Commercial","Commercial Management",2004,"No","n/a","n/a","2017-01-25","2017-01-25","n/a","n/a","E00110480","E01021750","E02004542","E14000693","Epping Forest","E05004151","Chigwell Village","E07000072","Epping Forest","E10000012","Essex","CSP018","Active Essex","E15000006","Eastern",544842.6,195644.9,51.640960999999997,9.1797000000000004E-2]
["Nuffield Health Chigwell Fitness & Wellbeing Gym",1000562,"Woolston Manor","Abridge Road","Chigwell","IG7 6BX","Swimming Pool","Lido",2010131,"Lanes",0,"Yes","Yes","Parking, Finding and reaching the entrance, Reception area, Doorways, Changing facilities, Activity areas, Toilets, Social areas, Spectator areas, Emergency exits",null,"Temporarily Closed","Registered Membership use","Commercial","Commercial Management",2004,"No","n/a","n/a","2017-01-25","2017-01-25","n/a","n/a","E00110480","E01021750","E02004542","E14000693","Epping Forest","E05004151","Chigwell Village","E07000072","Epping Forest","E10000012","Essex","CSP018","Active Essex","E15000006","Eastern",544842.6,195644.9,51.640960999999997,9.1797000000000004E-2]
["Nuffield Health Chigwell Fitness & Wellbeing Gym",1000562,"Woolston Manor","Abridge Road","Chigwell","IG7 6BX","Swimming Pool","Learner/Teaching/Training",2010132,"Lanes",0,"Yes","Yes","Parking, Finding and reaching the entrance, Reception area, Doorways, Changing facilities, Activity areas, Toilets, Social areas, Spectator areas, Emergency exits",null,"Operational","Registered Membership use","Commercial","Commercial Management",2004,"No","n/a","n/a","2017-01-25","2017-01-25","n/a","n/a","E00110480","E01021750","E02004542","E14000693","Epping Forest","E05004151","Chigwell Village","E07000072","Epping Forest","E10000012","Essex","CSP018","Active Essex","E15000006","Eastern",544842.6,195644.9,51.640960999999997,9.1797000000000004E-2]
["Nuffield Health Chigwell Fitness & Wellbeing Gym",1000562,"Woolston Manor","Abridge Road","Chigwell","IG7 6BX","Health and Fitness Suite","Health and Fitness Suite",2015296,"Stations",150,"Yes","Yes","Parking, Finding and reaching the entrance, Reception area, Doorways, Changing facilities, Activity areas, Toilets, Social areas, Spectator areas, Emergency exits",null,"Operational","Registered Membership use","Commercial","Commercial Management",2004,"Yes",2011,"n/a","2017-01-25","2017-01-25","n/a","n/a","E00110480","E01021750","E02004542","E14000693","Epping Forest","E05004151","Chigwell Village","E07000072","Epping Forest","E10000012","Essex","CSP018","Active Essex","E15000006","Eastern",544842.6,195644.9,51.640960999999997,9.1797000000000004E-2]
["Nuffield Health Chigwell Fitness & Wellbeing Gym",1000562,"Woolston Manor","Abridge Road","Chigwell","IG7 6BX","Studio","Studio",4000612,"Studios",0,"Yes","Yes","Parking, Finding and reaching the entrance, Reception area, Doorways, Changing facilities, Activity areas, Toilets, Social areas, Spectator areas, Emergency exits",null,"Operational","Registered Membership use","Commercial","Commercial Management",2004,"No","n/a","n/a","2017-01-25","2017-01-25","n/a","n/a","E00110480","E01021750","E02004542","E14000693","Epping Forest","E05004151","Chigwell Village","E07000072","Epping Forest","E10000012","Essex","CSP018","Active Essex","E15000006","Eastern",544842.6,195644.9,51.640960999999997,9.1797000000000004E-2]
["Nuffield Health Chigwell Fitness & Wellbeing Gym",1000562,"Woolston Manor","Abridge Road","Chigwell","IG7 6BX","Studio","Studio",4000613,"Studios",0,"Yes","Yes","Parking, Finding and reaching the entrance, Reception area, Doorways, Changing facilities, Activity areas, Toilets, Social areas, Spectator areas, Emergency exits",null,"Operational","Registered Membership use","Commercial","Commercial Management",2004,"No","n/a","n/a","2017-01-25","2017-01-25","n/a","n/a","E00110480","E01021750","E02004542","E14000693","Epping Forest","E05004151","Chigwell Village","E07000072","Epping Forest","E10000012","Essex","CSP018","Active Essex","E15000006","Eastern",544842.6,195644.9,51.640960999999997,9.1797000000000004E-2]
["Nuffield Health Chigwell Fitness & Wellbeing Gym",1000562,"Woolston Manor","Abridge Road","Chigwell","IG7 6BX","Studio","Studio",30001268,"Studios",0,"No","Yes","Parking, Finding and reaching the entrance, Reception area, Doorways, Changing facilities, Activity areas, Toilets, Social areas, Spectator areas, Emergency exits",null,"Operational","Registered Membership use","Commercial","Local Authority (in house)",2015,"No","n/a","n/a","2017-01-25","2017-01-25","n/a","n/a","E00110480","E01021750","E02004542","E14000693","Epping Forest","E05004151","Chigwell Village","E07000072","Epping Forest","E10000012","Essex","CSP018","Active Essex","E15000006","Eastern",544842.6,195644.9,51.640960999999997,9.1797000000000004E-2]
["ONGAR LEISURE CENTRE",1003759,null,"The Gables","Ongar","CM5 0GA","Sports Hall","Main",2003018,"Badminton courts",4,"Yes","Yes","Parking, Finding and reaching the entrance, Reception area, Doorways, Changing facilities, Activity areas, Toilets, Emergency exits",null,"Operational","Pay and Play","Local Authority","Commercial Management",1977,"No","n/a","n/a","2017-02-13","2017-02-13","n/a","n/a","E00110757","E01021802","E02004530","E14000594","Brentwood and Ongar","E05004172","Shelley","E07000072","Epping Forest","E10000012","Essex","CSP018","Active Essex","E15000006","Eastern",555382.25,204281.8,51.715746000000003,0.24782899999999999]
["ONGAR LEISURE CENTRE",1003759,null,"The Gables","Ongar","CM5 0GA","Swimming Pool","Main/General",2011671,"Lanes",6,"Yes","Yes","Parking, Finding and reaching the entrance, Reception area, Doorways, Changing facilities, Activity areas, Toilets, Emergency exits",null,"Operational","Pay and Play","Local Authority","Commercial Management",1977,"No","n/a","n/a","2017-02-13","2017-02-13","n/a","n/a","E00110757","E01021802","E02004530","E14000594","Brentwood and Ongar","E05004172","Shelley","E07000072","Epping Forest","E10000012","Essex","CSP018","Active Essex","E15000006","Eastern",555382.25,204281.8,51.715746000000003,0.24782899999999999]
["ONGAR LEISURE CENTRE",1003759,null,"The Gables","Ongar","CM5 0GA","Health and Fitness Suite","Health and Fitness Suite",2017492,"Stations",40,"Yes","Yes","Parking, Finding and reaching the entrance, Reception area, Doorways, Changing facilities, Activity areas, Toilets, Emergency exits",null,"Operational","Registered Membership use","Local Authority","Commercial Management",1979,"Yes",2011,"n/a","2017-02-13","2017-02-13","n/a","n/a","E00110757","E01021802","E02004530","E14000594","Brentwood and Ongar","E05004172","Shelley","E07000072","Epping Forest","E10000012","Essex","CSP018","Active Essex","E15000006","Eastern",555382.25,204281.8,51.715746000000003,0.24782899999999999]
["ONGAR LEISURE CENTRE",1003759,null,"The Gables","Ongar","CM5 0GA","Studio","Studio",4073426,"Studios",1,"Yes","Yes","Parking, Finding and reaching the entrance, Reception area, Doorways, Changing facilities, Activity areas, Toilets, Emergency exits",null,"Operational","Pay and Play","Local Authority","Commercial Management",2006,"No","n/a","n/a","2017-02-13","2017-02-13","n/a","n/a","E00110757","E01021802","E02004530","E14000594","Brentwood and Ongar","E05004172","Shelley","E07000072","Epping Forest","E10000012","Essex","CSP018","Active Essex","E15000006","Eastern",555382.25,204281.8,51.715746000000003,0.24782899999999999]
["ONGAR LEISURE CENTRE",1003759,null,"The Gables","Ongar","CM5 0GA","Studio","Studio",30001470,"Studios",1,"Yes","Yes","Parking, Finding and reaching the entrance, Reception area, Doorways, Changing facilities, Activity areas, Toilets, Emergency exits",null,"Operational","Pay and Play","Local Authority","Commercial Management",2006,"No","n/a","n/a","2017-02-13","2017-02-13","n/a","n/a","E00110757","E01021802","E02004530","E14000594","Brentwood and Ongar","E05004172","Shelley","E07000072","Epping Forest","E10000012","Essex","CSP018","Active Essex","E15000006","Eastern",555382.25,204281.8,51.715746000000003,0.24782899999999999]
["PRO SW GYM",1044756,"Sterling House","Langston Road","Loughton","IG10 3TS","Health and Fitness Suite","Health and Fitness Suite",4113420,"Stations",24,"Yes","Yes","Parking, Reception area, Doorways, Activity areas, Emergency exits",null,"Operational","Registered Membership use","Commercial","Commercial Management",2011,"No","n/a","n/a","2017-01-09","2017-01-09","n/a","n/a","E00110612","E01021776","E02004537","E14000693","Epping Forest","E05004160","Loughton Broadway","E07000072","Epping Forest","E10000012","Essex","CSP018","Active Essex","E15000006","Eastern",544483.16,196085.66,51.645012999999999,8.6788000000000004E-2]
["PRO SW GYM",1044756,"Sterling House","Langston Road","Loughton","IG10 3TS","Studio","Studio",4113421,"Studios",1,"Yes","Yes","Parking, Reception area, Doorways, Activity areas, Emergency exits",null,"Operational","Registered Membership use","Commercial","Commercial Management",2011,"No","n/a","n/a","2017-01-09","2017-01-09","n/a","n/a","E00110612","E01021776","E02004537","E14000693","Epping Forest","E05004160","Loughton Broadway","E07000072","Epping Forest","E10000012","Essex","CSP018","Active Essex","E15000006","Eastern",544483.16,196085.66,51.645012999999999,8.6788000000000004E-2]
["RODING VALLEY HIGH SCHOOL",1204080,null,"Alderton Hill","Loughton","IG10 3JA","Sports Hall","Main",2212748,"Badminton courts",4,"Yes","Yes","Parking, Finding and reaching the entrance, Reception area, Doorways, Changing facilities, Activity areas, Toilets, Emergency exits","Parking: 2 disabled parking bays.","Operational","Sports Club / Community Association","Community school","School/College/University (in house)",1993,"Yes",2006,"n/a","2016-06-28","2016-06-28","n/a","n/a","E00110689","E01021791","E02004538","E14000693","Epping Forest","E05004165","Loughton St Mary's","E07000072","Epping Forest","E10000012","Essex","CSP018","Active Essex","E15000006","Eastern",542360,195842.6,51.643369999999997,5.6024999999999998E-2]
["RODING VALLEY HIGH SCHOOL",1204080,null,"Alderton Hill","Loughton","IG10 3JA","Sports Hall","Activity Hall",2212749,"Badminton courts",2,"Yes","Yes","Parking, Finding and reaching the entrance, Reception area, Doorways, Changing facilities, Activity areas, Toilets, Emergency exits","Parking: 2 disabled parking bays.","Operational","Sports Club / Community Association","Community school","School/College/University (in house)",1992,"No","n/a","n/a","2016-06-28","2016-06-28","n/a","n/a","E00110689","E01021791","E02004538","E14000693","Epping Forest","E05004165","Loughton St Mary's","E07000072","Epping Forest","E10000012","Essex","CSP018","Active Essex","E15000006","Eastern",542360,195842.6,51.643369999999997,5.6024999999999998E-2]
["THE ALLNUTS HALL",1043591,null,"Allnutts Road","Epping","CM16 7BD","Sports Hall","Activity Hall",4110793,"Badminton courts",0,"No","Yes","Finding and reaching the entrance, Doorways, Activity areas, Emergency exits",null,"Operational","Pay and Play","Community Organisation","Community Organisation","n/a","Not Known","n/a","n/a","2011-07-08","2011-07-08","n/a","n/a","E00110521","E01021759","E02004532","E14000693","Epping Forest","E05004153","Epping Hemnall","E07000072","Epping Forest","E10000012","Essex","CSP018","Active Essex","E15000006","Eastern",546187,200990,51.688639000000002,0.11344600000000001]
["WALTHAM ABBEY SWIMMING POOL",1003781,null,"Roundhills","Waltham Abbey","EN9 1UP","Swimming Pool","Main/General",2011688,"Lanes",5,"Yes","Yes","Parking, Finding and reaching the entrance, Reception area, Doorways, Changing facilities, Activity areas, Toilets, Social areas, Spectator areas, Emergency exits",null,"Operational","Pay and Play","Local Authority","Commercial Management",1967,"No","n/a","n/a","2017-01-19","2017-01-19","n/a","n/a","E00110802","E01021808","E02004534","E14000693","Epping Forest","E05004175","Waltham Abbey Honey Lane","E07000072","Epping Forest","E10000012","Essex","CSP018","Active Essex","E15000006","Eastern",538850,199956,51.681209000000003,6.9649999999999998E-3]
["WALTHAM ABBEY SWIMMING POOL",1003781,null,"Roundhills","Waltham Abbey","EN9 1UP","Health and Fitness Suite","Health and Fitness Suite",2017505,"Stations",50,"Yes","Yes","Parking, Finding and reaching the entrance, Reception area, Doorways, Changing facilities, Activity areas, Toilets, Social areas, Emergency exits",null,"Operational","Registered Membership use","Local Authority","Commercial Management",1982,"Yes",2011,"n/a","2017-01-19","2017-01-19","n/a","n/a","E00110802","E01021808","E02004534","E14000693","Epping Forest","E05004175","Waltham Abbey Honey Lane","E07000072","Epping Forest","E10000012","Essex","CSP018","Active Essex","E15000006","Eastern",538850,199956,51.681209000000003,6.9649999999999998E-3]
["WALTHAM ABBEY SWIMMING POOL",1003781,null,"Roundhills","Waltham Abbey","EN9 1UP","Swimming Pool","Learner/Teaching/Training",2021930,"Lanes",0,"Yes","Yes","Parking, Finding and reaching the entrance, Reception area, Doorways, Changing facilities, Activity areas, Toilets, Social areas, Spectator areas, Emergency exits",null,"Operational","Pay and Play","Local Authority","Commercial Management",1967,"No","n/a","n/a","2017-01-19","2017-01-19","n/a","n/a","E00110802","E01021808","E02004534","E14000693","Epping Forest","E05004175","Waltham Abbey Honey Lane","E07000072","Epping Forest","E10000012","Essex","CSP018","Active Essex","E15000006","Eastern",538850,199956,51.681209000000003,6.9649999999999998E-3]
["WALTHAM ABBEY SWIMMING POOL",1003781,null,"Roundhills","Waltham Abbey","EN9 1UP","Studio","Studio",4071274,"Studios",1,"Yes","Yes","Parking, Finding and reaching the entrance, Reception area, Doorways, Changing facilities, Activity areas, Toilets, Social areas, Emergency exits",null,"Operational","Registered Membership use","Local Authority","Commercial Management",2006,"No","n/a","n/a","2017-01-19","2017-01-19","n/a","n/a","E00110802","E01021808","E02004534","E14000693","Epping Forest","E05004175","Waltham Abbey Honey Lane","E07000072","Epping Forest","E10000012","Essex","CSP018","Active Essex","E15000006","Eastern",538850,199956,51.681209000000003,6.9649999999999998E-3]
["WEST HATCH HIGH SCHOOL ACADEMY",1204076,null,"High Road","Chigwell","IG7 5BT","Health and Fitness Suite","Health and Fitness Suite",2078975,"Stations",6,"Yes","Yes","Parking, Finding and reaching the entrance, Reception area, Doorways, Activity areas, Emergency exits","Activity Areas: Hoist for Swimming Pool is due for installation.","Operational","Private Use","Academies","School/College/University (in house)",2007,"Yes",2009,"n/a","2016-11-22","2016-11-22","n/a","n/a","E00110485","E01021752","E02004542","E14000693","Epping Forest","E05004151","Chigwell Village","E07000072","Epping Forest","E10000012","Essex","CSP018","Active Essex","E15000006","Eastern",542935.30000000005,192420.8,51.612478000000003,6.2938999999999995E-2]
["WEST HATCH HIGH SCHOOL ACADEMY",1204076,null,"High Road","Chigwell","IG7 5BT","Sports Hall","Activity Hall",2212734,"Badminton courts",1,"Yes","Yes","Parking, Finding and reaching the entrance, Reception area, Doorways, Activity areas, Emergency exits","Activity Areas: Hoist for Swimming Pool is due for installation.","Operational","Sports Club / Community Association","Academies","School/College/University (in house)",1957,"No","n/a","n/a","2016-11-22","2016-11-22","n/a","n/a","E00110485","E01021752","E02004542","E14000693","Epping Forest","E05004151","Chigwell Village","E07000072","Epping Forest","E10000012","Essex","CSP018","Active Essex","E15000006","Eastern",542935.30000000005,192420.8,51.612478000000003,6.2938999999999995E-2]
["WEST HATCH HIGH SCHOOL ACADEMY",1204076,null,"High Road","Chigwell","IG7 5BT","Swimming Pool","Main/General",2212735,"Lanes",5,"Yes","Yes","Parking, Finding and reaching the entrance, Reception area, Doorways, Activity areas, Emergency exits","Activity Areas: Hoist for Swimming Pool is due for installation.","Operational","Sports Club / Community Association","Academies","School/College/University (in house)",1957,"Yes",2010,"n/a","2016-11-22","2016-11-22","n/a","n/a","E00110485","E01021752","E02004542","E14000693","Epping Forest","E05004151","Chigwell Village","E07000072","Epping Forest","E10000012","Essex","CSP018","Active Essex","E15000006","Eastern",542935.30000000005,192420.8,51.612478000000003,6.2938999999999995E-2]
["WOOLSTON MANOR GOLF AND COUNTRY CLUB",1041754,null,"Abridge Road","Chigwell","IG7 6BX","Swimming Pool","Lido",2098722,"Lanes",2,"Yes","Yes","Parking, Finding and reaching the entrance, Reception area, Doorways, Changing facilities, Activity areas, Toilets, Social areas, Spectator areas, Emergency exits",null,"Temporarily Closed","Sports Club / Community Association","Commercial","Commercial Management",2007,"No","n/a","n/a","2016-11-07","2016-11-07","n/a","n/a","E00110480","E01021750","E02004542","E14000693","Epping Forest","E05004151","Chigwell Village","E07000072","Epping Forest","E10000012","Essex","CSP018","Active Essex","E15000006","Eastern",544970.22,195794.98,51.642276000000003,9.3701999999999994E-2]
["WOOLSTON MANOR GOLF AND COUNTRY CLUB",1041754,null,"Abridge Road","Chigwell","IG7 6BX","Health and Fitness Suite","Health and Fitness Suite",4106588,"Stations",6,"Yes","Yes","Parking, Finding and reaching the entrance, Reception area, Doorways, Changing facilities, Activity areas, Toilets, Social areas, Emergency exits",null,"Operational","Registered Membership use","Commercial","Commercial Management",2008,"No","n/a","n/a","2016-11-07","2016-11-07","n/a","n/a","E00110480","E01021750","E02004542","E14000693","Epping Forest","E05004151","Chigwell Village","E07000072","Epping Forest","E10000012","Essex","CSP018","Active Essex","E15000006","Eastern",544970.22,195794.98,51.642276000000003,9.3701999999999994E-2]
[]
["Contains Active Places Data © Sport England"]

{"sheet":"All","index":1,"n_rows":73,"n_cols":47,"rows_kept":73,"cut":false,"hidden":true,"merged":[]}
["Site Name","Community Use","Site Id","Building Name or Number","Thoroughfare","Post Town"," Post Code","Facility Type","Facility Sub Type","Facility Id","Unit","Number","Changing Rooms","Disability","Disability Details","Disability Notes","Facility Status","Access Type","Ownership Type","Management Type","Year Built","Refurbished","Year Refurbished","Closed Date","Last Updated Date","Last Full Audit Date","UPRN","TOID","Output Area Code","Lower Super Output Area Code","Middle Super Output Area Code","Parliamentary Constituency Code","Parliamentary Constituency Name","Ward Code","Ward Name","Local Authority Code","Local Authority Name","County Code","County Name","CSP Code","CSP Name","Region Code","Region Name","Easting","Northing","Latitude","Longitude"]
["ABRIDGE VILLAGE HALL","Y",6021140,39,"Ongar Road","Romford","RM4 1UH","Sports Hall","Activity Hall",2090124,"Badminton courts",1,"Yes","Yes","Parking, Finding and reaching the entrance, Doorways, Activity areas, Toilets, Social areas, Emergency exits",null,"Operational","Sports Club / Community Association","Other","Trust",1993,"No","n/a","n/a","2016-10-07","2016-10-07","n/a","n/a","E00110592","E01021770","E02004536","E14000594","Brentwood and Ongar","E05004158","Lambourne","E07000072","Epping Forest","E10000012","Essex","CSP018","Active Essex","E15000006","Eastern",546988,197108,51.653551,0.123393]
["CHIGWELL SCHOOL","N",1204104,null,"High Road","Chigwell","IG7 6QF","Swimming Pool","Lido",2212888,"Lanes",4,"Yes","Yes","Parking, Finding and reaching the entrance, Reception area, Doorways, Changing facilities, Activity areas, Toilets, Emergency exits",null,"Temporarily Closed","Private Use","Other Independent School","School/College/University (in house)","n/a","No","n/a","n/a","2016-09-15","2016-09-15","n/a","n/a","E00110481","E01021750","E02004542","E14000693","Epping Forest","E05004151","Chigwell Village","E07000072","Epping Forest","E10000012","Essex","CSP018","Active Essex","E15000006","Eastern",544151,193880,51.625279999999997,8.1084000000000003E-2]
["CHIGWELL SCHOOL",1204104,null,"N","High Road","Chigwell","IG7 6QF","Health and Fitness Suite","Health and Fitness Suite",2212881,"Stations",8,"Yes","Yes","Parking, Finding and reaching the entrance, Reception area, Doorways, Changing facilities, Activity areas, Toilets, Emergency exits",null,"Operational","Private Use","Other Independent School","School/College/University (in house)",1989,"No","n/a","n/a","2016-09-15","2016-09-15","n/a","n/a","E00110481","E01021750","E02004542","E14000693","Epping Forest","E05004151","Chigwell Village","E07000072","Epping Forest","E10000012","Essex","CSP018","Active Essex","E15000006","Eastern",544151,193880,51.625279999999997,8.1084000000000003E-2]
["CHIGWELL SCHOOL","N",1204104,null,"High Road","Chigwell","IG7 6QF","Sports Hall","Main",2212886,"Badminton courts",3,"Yes","Yes","Parking, Finding and reaching the entrance, Reception area, Doorways, Changing facilities, Activity areas, Toilets, Emergency exits",null,"Operational","Sports Club / Community Association","Other Independent School","School/College/University (in house)",1989,"No","n/a","n/a","2016-09-15","2016-09-15","n/a","n/a","E00110481","E01021750","E02004542","E14000693","Epping Forest","E05004151","Chigwell Village","E07000072","Epping Forest","E10000012","Essex","CSP018","Active Essex","E15000006","Eastern",544151,193880,51.625279999999997,8.1084000000000003E-2]
["CHIGWELL SCHOOL","N",1204104,null,"High Road","Chigwell","IG7 6QF","Sports Hall","Activity Hall",2212887,"Badminton courts",1,"Yes","Yes","Parking, Finding and reaching the entrance, Reception area, Doorways, Changing facilities, Activity areas, Toilets, Emergency exits",null,"Operational","Sports Club / Community Association","Other Independent School","School/College/University (in house)",1955,"No","n/a","n/a","2016-09-15","2016-09-15","n/a","n/a","E00110481","E01021750","E02004542","E14000693","Epping Forest","E05004151","Chigwell Village","E07000072","Epping Forest","E10000012","Essex","CSP018","Active Essex","E15000006","Eastern",544151,193880,51.625279999999997,8.1084000000000003E-2]
["DAVENANT FOUNDATION SCHOOL","N",1204252,null,"Chester Road","Loughton","IG10 2LD","Swimming Pool","Main/General",2213540,"Lanes",4,"Yes","Yes","Parking, Finding and reaching the entrance, Reception area, Doorways, Changing facilities, Activity areas, Toilets, Spectator areas, Emergency exits","Activity Areas: Hoist available for Swimming Pool.","Operational","Sports Club / Community Association","Academies","School/College/University (in house)",1999,"No","n/a","n/a","2016-11-28","2016-11-28","n/a","n/a","E00110613","E01021774","E02004537","E14000693","Epping Forest","E05004160","Loughton Broadway","E07000072","Epping Forest","E10000012","Essex","CSP018","Active Essex","E15000006","Eastern",544283.1,198030.7,51.662540999999997,8.4700999999999999E-2]
["DAVENANT FOUNDATION SCHOOL",1204252,null,"N","Chester Road","Loughton","IG10 2LD","Health and Fitness Suite","Health and Fitness Suite",2039838,"Stations",16,"Yes","Yes","Parking, Finding and reaching the entrance, Reception area, Doorways, Changing facilities, Activity areas, Toilets, Emergency exits","Activity Areas: Hoist available for Swimming Pool.","Operational","Private Use","Academies","School/College/University (in house)",1999,"No","n/a","n/a","2016-11-28","2016-11-28","n/a","n/a","E00110613","E01021774","E02004537","E14000693","Epping Forest","E05004160","Loughton Broadway","E07000072","Epping Forest","E10000012","Essex","CSP018","Active Essex","E15000006","Eastern",544283.1,198030.7,51.662540999999997,8.4700999999999999E-2]
["DAVENANT FOUNDATION SCHOOL","N",1204252,null,"Chester Road","Loughton","IG10 2LD","Sports Hall","Main",2213537,"Badminton courts",3,"Yes","Yes","Parking, Finding and reaching the entrance, Reception area, Doorways, Changing facilities, Activity areas, Toilets, Emergency exits","Activity Areas: Hoist available for Swimming Pool.","Operational","Sports Club / Community Association","Academies","School/College/University (in house)",1999,"No","n/a","n/a","2016-11-28","2016-11-28","n/a","n/a","E00110613","E01021774","E02004537","E14000693","Epping Forest","E05004160","Loughton Broadway","E07000072","Epping Forest","E10000012","Essex","CSP018","Active Essex","E15000006","Eastern",544283.1,198030.7,51.662540999999997,8.4700999999999999E-2]
["DAVENANT FOUNDATION SCHOOL","N",1204252,null,"Chester Road","Loughton","IG10 2LD","Sports Hall","Activity Hall",2213538,"Badminton courts",1,"Yes","Yes","Parking, Finding and reaching the entrance, Reception area, Doorways, Changing facilities, Activity areas, Toilets, Emergency exits","Activity Areas: Hoist available for Swimming Pool.","Operational","Sports Club / Community Association","Academies","School/College/University (in house)",1999,"Yes",2003,"n/a","2016-11-28","2016-11-28","n/a","n/a","E00110613","E01021774","E02004537","E14000693","Epping Forest","E05004160","Loughton Broadway","E07000072","Epping Forest","E10000012","Essex","CSP018","Active Essex","E15000006","Eastern",544283.1,198030.7,51.662540999999997,8.4700999999999999E-2]
["DAVENANT FOUNDATION SCHOOL","N",1204252,null,"Chester Road","Loughton","IG10 2LD","Sports Hall","Activity Hall",2213539,"Badminton courts",1,"Yes","Yes","Parking, Finding and reaching the entrance, Reception area, Doorways, Changing facilities, Activity areas, Toilets, Emergency exits","Activity Areas: Hoist available for Swimming Pool.","Operational","Sports Club / Community Association","Academies","School/College/University (in house)",2000,"Yes",2005,"n/a","2016-11-28","2016-11-28","n/a","n/a","E00110613","E01021774","E02004537","E14000693","Epping Forest","E05004160","Loughton Broadway","E07000072","Epping Forest","E10000012","Essex","CSP018","Active Essex","E15000006","Eastern",544283.1,198030.7,51.662540999999997,8.4700999999999999E-2]
["DAVID LLOYD CLUB (CHIGWELL)","N",1000023,null,"Roding Lane","Buckhurst Hill","IG9 6BJ","Swimming Pool","Main/General",2009739,"Lanes",3,"Yes","Yes","Parking, Finding and reaching the entrance, Reception area, Doorways, Changing facilities, Activity areas, Toilets, Social areas, Emergency exits","Parking: 10 bays","Operational","Registered Membership use","Commercial","Commercial Management",1992,"Yes",2014,"n/a","2016-12-30","2016-12-30","n/a","n/a","E00110480","E01021750","E02004542","E14000693","Epping Forest","E05004151","Chigwell Village","E07000072","Epping Forest","E10000012","Essex","CSP018","Active Essex","E15000006","Eastern",542871.72,194263.49,51.629052000000001,6.2771999999999994E-2]
["DAVID LLOYD CLUB (CHIGWELL)","N",1000023,null,"Roding Lane","Buckhurst Hill","IG9 6BJ","Swimming Pool","Lido",2009740,"Lanes",1,"Yes","Yes","Parking, Finding and reaching the entrance, Reception area, Doorways, Changing facilities, Activity areas, Toilets, Social areas, Emergency exits","Parking: 10 bays","Operational","Registered Membership use","Commercial","Commercial Management",1992,"Yes",2002,"n/a","2016-12-30","2016-12-30","n/a","n/a","E00110480","E01021750","E02004542","E14000693","Epping Forest","E05004151","Chigwell Village","E07000072","Epping Forest","E10000012","Essex","CSP018","Active Essex","E15000006","Eastern",542871.72,194263.49,51.629052000000001,6.2771999999999994E-2]
["DAVID LLOYD CLUB (CHIGWELL)","N",1000023,null,"Roding Lane","Buckhurst Hill","IG9 6BJ","Studio","Studio",4000044,"Studios",0,"Yes","Yes","Parking, Finding and reaching the entrance, Reception area, Doorways, Changing facilities, Activity areas, Toilets, Social areas, Emergency exits","Parking: 10 bays","Operational","Registered Membership use","Commercial","Commercial Management",1992,"Yes",2014,"n/a","2016-12-30","2016-12-30","n/a","n/a","E00110480","E01021750","E02004542","E14000693","Epping Forest","E05004151","Chigwell Village","E07000072","Epping Forest","E10000012","Essex","CSP018","Active Essex","E15000006","Eastern",542871.72,194263.49,51.629052000000001,6.2771999999999994E-2]
["DAVID LLOYD CLUB (CHIGWELL)","N",1000023,null,"Roding Lane","Buckhurst Hill","IG9 6BJ","Studio","Studio",4000045,"Studios",0,"Yes","Yes","Parking, Finding and reaching the entrance, Reception area, Doorways, Changing facilities, Activity areas, Toilets, Social areas, Emergency exits","Parking: 10 bays","Operational","Registered Membership use","Commercial","Commercial Management",1992,"Yes",2014,"n/a","2016-12-30","2016-12-30","n/a","n/a","E00110480","E01021750","E02004542","E14000693","Epping Forest","E05004151","Chigwell Village","E07000072","Epping Forest","E10000012","Essex","CSP018","Active Essex","E15000006","Eastern",542871.72,194263.49,51.629052000000001,6.2771999999999994E-2]
["DAVID LLOYD CLUB (CHIGWELL)",1000023,null,"N","Roding Lane","Buckhurst Hill","IG9 6BJ","Health and Fitness Suite","Health and Fitness Suite",2014798,"Stations",145,"Yes","Yes","Parking, Finding and reaching the entrance, Reception area, Doorways, Changing facilities, Activity areas, Toilets, Social areas, Emergency exits","Parking: 10 bays","Operational","Registered Membership use","Commercial","Commercial Management",1992,"Yes",2014,"n/a","2016-12-30","2016-12-30","n/a","n/a","E00110480","E01021750","E02004542","E14000693","Epping Forest","E05004151","Chigwell Village","E07000072","Epping Forest","E10000012","Essex","CSP018","Active Essex","E15000006","Eastern",542871.72,194263.49,51.629052000000001,6.2771999999999994E-2]
["DAVID LLOYD CLUB (CHIGWELL)","N",1000023,null,"Roding Lane","Buckhurst Hill","IG9 6BJ","Sports Hall","Activity Hall",2000043,"Badminton courts",2,"Yes","Yes","Parking, Finding and reaching the entrance, Reception area, Doorways, Changing facilities, Activity areas, Toilets, Social areas, Emergency exits","Parking: 10 bays","Operational","Registered Membership use","Commercial","Commercial Management",2002,"Yes",2014,"n/a","2016-12-30","2016-12-30","n/a","n/a","E00110480","E01021750","E02004542","E14000693","Epping Forest","E05004151","Chigwell Village","E07000072","Epping Forest","E10000012","Essex","CSP018","Active Essex","E15000006","Eastern",542871.72,194263.49,51.629052000000001,6.2771999999999994E-2]
["DAVID LLOYD CLUB (CHIGWELL)",1000023,null,"Roding Lane","Buckhurst Hill","IG9 6BJ","Indoor Bowls","Indoor Bowls",2008861,"Rinks",7,"Yes","Yes","Parking, Finding and reaching the entrance, Reception area, Doorways, Changing facilities, Activity areas, Toilets, Social areas, Emergency exits","Parking: 10 bays","Operational","Registered Membership use","Commercial","Commercial Management",1992,"Yes",2004,"n/a","2016-12-30","2016-12-30","n/a","n/a","E00110480","E01021750","E02004542","E14000693","Epping Forest","E05004151","Chigwell Village","E07000072","Epping Forest","E10000012","Essex","CSP018","Active Essex","E15000006","Eastern",542871.72,194263.49,51.629052000000001,6.2771999999999994E-2]
["DEBDEN PARK HIGH SCHOOL","N",1008866,null,"Willingale Road","Loughton","IG10 2BQ","Studio","Studio",4078099,"Studios",0,"Yes","Yes","Parking, Finding and reaching the entrance, Reception area, Doorways, Changing facilities, Activity areas, Toilets, Emergency exits",null,"Operational","Pay and Play","Academies","Other",2001,"No","n/a","n/a","2016-08-22","2016-08-22","n/a","n/a","E00110611","E01021775","E02004537","E14000693","Epping Forest","E05004160","Loughton Broadway","E07000072","Epping Forest","E10000012","Essex","CSP018","Active Essex","E15000006","Eastern",544585,197047,51.653624999999998,8.8655999999999999E-2]
["DEBDEN PARK HIGH SCHOOL","N",1008866,null,"Willingale Road","Loughton","IG10 2BQ","Sports Hall","Main",2007558,"Badminton courts",4,"Yes","Yes","Parking, Finding and reaching the entrance, Reception area, Doorways, Changing facilities, Activity areas, Toilets, Emergency exits",null,"Operational","Pay and Play","Academies","Other",2001,"Yes",2006,"n/a","2016-08-22","2016-08-22","n/a","n/a","E00110611","E01021775","E02004537","E14000693","Epping Forest","E05004160","Loughton Broadway","E07000072","Epping Forest","E10000012","Essex","CSP018","Active Essex","E15000006","Eastern",544585,197047,51.653624999999998,8.8655999999999999E-2]
["EPPING FOREST COLLEGE",1204720,null,"N","Borders Lane","Loughton","IG10 3SA","Health and Fitness Suite","Health and Fitness Suite",2081634,"Stations",15,"Yes","Yes","Parking, Finding and reaching the entrance, Reception area, Doorways, Activity areas, Toilets, Emergency exits",null,"Operational","Private Use","Further Education","School/College/University (in house)",2007,"No","n/a","n/a","2016-12-05","2016-12-05","n/a","n/a","E00170069","E01021790","E02004538","E14000693","Epping Forest","E05004165","Loughton St Mary's","E07000072","Epping Forest","E10000012","Essex","CSP018","Active Essex","E15000006","Eastern",543687.5,196438.7,51.648389000000002,7.5441999999999995E-2]
["EPPING SPORTS CENTRE","Y",1003733,25,"Hemnall Street","Epping","CM16 4LU","Studio","Studio",4002988,"Studios",0,"Yes","Yes","Parking, Finding and reaching the entrance, Reception area, Doorways, Changing facilities, Activity areas, Toilets, Emergency exits",null,"Operational","Pay and Play","Local Authority","Commercial Management",1970,"No","n/a","n/a","2017-03-14","2017-03-14","n/a","n/a","E00110509","E01021758","E02004532","E14000693","Epping Forest","E05004153","Epping Hemnall","E07000072","Epping Forest","E10000012","Essex","CSP018","Active Essex","E15000006","Eastern",545887.69999999995,201811.65,51.696100000000001,0.109462]
["EPPING SPORTS CENTRE",1003733,25,"Y","Hemnall Street","Epping","CM16 4LU","Health and Fitness Suite","Health and Fitness Suite",2017475,"Stations",46,"Yes","Yes","Parking, Finding and reaching the entrance, Reception area, Doorways, Changing facilities, Activity areas, Toilets, Emergency exits",null,"Operational","Pay and Play","Local Authority","Commercial Management",1970,"Yes",2006,"n/a","2017-03-14","2017-03-14","n/a","n/a","E00110509","E01021758","E02004532","E14000693","Epping Forest","E05004153","Epping Hemnall","E07000072","Epping Forest","E10000012","Essex","CSP018","Active Essex","E15000006","Eastern",545887.69999999995,201811.65,51.696100000000001,0.109462]
["EPPING SPORTS CENTRE","Y",1003733,25,"Hemnall Street","Epping","CM16 4LU","Sports Hall","Main",2002987,"Badminton courts",4,"Yes","Yes","Parking, Finding and reaching the entrance, Reception area, Doorways, Changing facilities, Activity areas, Toilets, Emergency exits",null,"Operational","Pay and Play","Local Authority","Commercial Management",1970,"No","n/a","n/a","2017-03-14","2017-03-14","n/a","n/a","E00110509","E01021758","E02004532","E14000693","Epping Forest","E05004153","Epping Hemnall","E07000072","Epping Forest","E10000012","Essex","CSP018","Active Essex","E15000006","Eastern",545887.69999999995,201811.65,51.696100000000001,0.109462]
["EPPING SPORTS CENTRE","Y",1003733,25,"Hemnall Street","Epping","CM16 4LU","Squash Courts","Normal",4036865,"Courts",3,"Yes","Yes","Parking, Finding and reaching the entrance, Reception area, Doorways, Changing facilities, Activity areas, Toilets, Emergency exits",null,"Operational","Pay and Play","Local Authority","Commercial Management",1970,"Yes",2006,"n/a","2017-03-14","2017-03-14","n/a","n/a","E00110509","E01021758","E02004532","E14000693","Epping Forest","E05004153","Epping Hemnall","E07000072","Epping Forest","E10000012","Essex","CSP018","Active Essex","E15000006","Eastern",545887.69999999995,201811.65,51.696100000000001,0.109462]
["EPPING SPORTS CENTRE","Y",1003733,25,"Hemnall Street","Epping","CM16 4LU","Squash Courts","Glass-backed",4040142,"Courts",1,"Yes","Yes","Parking, Finding and reaching the entrance, Reception area, Doorways, Changing facilities, Activity areas, Toilets, Emergency exits",null,"Operational","Pay and Play","Local Authority","Commercial Management",1970,"Yes",2006,"n/a","2017-03-14","2017-03-14","n/a","n/a","E00110509","E01021758","E02004532","E14000693","Epping Forest","E05004153","Epping Hemnall","E07000072","Epping Forest","E10000012","Essex","CSP018","Active Essex","E15000006","Eastern",545887.69999999995,201811.65,51.696100000000001,0.109462]
["EPPING ST JOHN'S","N",1203746,null,"Bury Lane","Epping","CM16 5JB","Sports Hall","Main",2211464,"Badminton courts",4,"Yes","Yes","Parking, Finding and reaching the entrance, Reception area, Doorways, Activity areas, Toilets, Emergency exits",null,"Operational","Sports Club / Community Association","Voluntary Controlled School","School/College/University (in house)",1921,"No","n/a","n/a","2016-11-22","2016-11-22","n/a","n/a","E00110547","E01021763","E02004531","E14000693","Epping Forest","E05004154","Epping Lindsey and Thornwood Common","E07000072","Epping Forest","E10000012","Essex","CSP018","Active Essex","E15000006","Eastern",545397,202114,0,0]
["EPPING ST JOHN'S","N",1203746,null,"Bury Lane","Epping","CM16 5JB","Sports Hall","Activity Hall",2211465,"Badminton courts",0,"Yes","Yes","Parking, Finding and reaching the entrance, Reception area, Doorways, Activity areas, Toilets, Emergency exits",null,"Operational","Sports Club / Community Association","Voluntary Controlled School","School/College/University (in house)",1921,"No","n/a","n/a","2016-11-22","2016-11-22","n/a","n/a","E00110547","E01021763","E02004531","E14000693","Epping Forest","E05004154","Epping Lindsey and Thornwood Common","E07000072","Epping Forest","E10000012","Essex","CSP018","Active Essex","E15000006","Eastern",545397,202114,0,0]
["GURU GOBIND SINGH KHALSA COLLEGE","N",1203672,null,"Roding Lane","Chigwell","IG7 6BQ","Sports Hall","Main",2211189,"Badminton courts",3,"Yes","Yes","Finding and reaching the entrance, Reception area, Doorways, Activity areas, Social areas, Spectator areas, Emergency exits",null,"Operational","Sports Club / Community Association","Other Independent School","School/College/University (in house)",1938,"No","n/a","n/a","2017-03-20","2017-03-20","n/a","n/a","E00110480","E01021750","E02004542","E14000693","Epping Forest","E05004151","Chigwell Village","E07000072","Epping Forest","E10000012","Essex","CSP018","Active Essex","E15000006","Eastern",542979,194070,51.627285999999998,6.4241999999999994E-2]
["JUBILEE PARK PAVILION","Y",1038126,null,"Love Lane","Ongar","CM5 9BL","Squash Courts","Normal",4080867,"Courts",2,"Yes","Yes","Finding and reaching the entrance, Doorways, Activity areas, Social areas, Emergency exits",null,"Operational","Sports Club / Community Association","Local Authority","Local Authority (in house)",1976,"No","n/a","n/a","2017-05-30","2017-05-30","n/a","n/a","E00110495","E01021755","E02004530","E14000594","Brentwood and Ongar","E05004152","Chipping Ongar, Greensted and Marden Ash","E07000072","Epping Forest","E10000012","Essex","CSP018","Active Essex","E15000006","Eastern",555409.81000000006,203483.53,51.708567000000002,0.24787200000000001]
["KING HAROLD ACADEMY SPORTS CENTRE","N",1003780,null,"Broomstick Hall Road","Waltham Abbey","EN9 1LF","Studio","Studio",4003044,"Studios",0,"Yes","Not Known",null,null,"Operational","Private Use","Academies","Not Known",2003,"No","n/a","n/a","2017-03-29","2017-03-29","n/a","n/a","E00110783","E01021807","E02004534","E14000693","Epping Forest","E05004175","Waltham Abbey Honey Lane","E07000072","Epping Forest","E10000012","Essex","CSP018","Active Essex","E15000006","Eastern",539530,200922,51.689720999999999,1.7180000000000001E-2]
["KING HAROLD ACADEMY SPORTS CENTRE",1003780,null,"N","Broomstick Hall Road","Waltham Abbey","EN9 1LF","Health and Fitness Suite","Health and Fitness Suite",2017504,"Stations",20,"Yes","Not Known",null,null,"Operational","Private Use","Academies","Not Known",1985,"No","n/a","n/a","2017-03-29","2017-03-29","n/a","n/a","E00110783","E01021807","E02004534","E14000693","Epping Forest","E05004175","Waltham Abbey Honey Lane","E07000072","Epping Forest","E10000012","Essex","CSP018","Active Essex","E15000006","Eastern",539530,200922,51.689720999999999,1.7180000000000001E-2]
["KING HAROLD ACADEMY SPORTS CENTRE","Y",1003780,null,"Broomstick Hall Road","Waltham Abbey","EN9 1LF","Sports Hall","Main",2003043,"Badminton courts",5,"Yes","Not Known",null,null,"Operational","Pay and Play","Academies","Not Known",1972,"Yes",2003,"n/a","2017-03-29","2017-03-29","n/a","n/a","E00110783","E01021807","E02004534","E14000693","Epping Forest","E05004175","Waltham Abbey Honey Lane","E07000072","Epping Forest","E10000012","Essex","CSP018","Active Essex","E15000006","Eastern",539530,200922,51.689720999999999,1.7180000000000001E-2]
["KING HAROLD ACADEMY SPORTS CENTRE","Y",1003780,null,"Broomstick Hall Road","Waltham Abbey","EN9 1LF","Squash Courts","Normal",4036880,"Courts",2,"Yes","Not Known",null,null,"Operational","Private Use","Academies","Not Known",1972,"No","n/a","n/a","2017-03-29","2017-03-29","n/a","n/a","E00110783","E01021807","E02004534","E14000693","Epping Forest","E05004175","Waltham Abbey Honey Lane","E07000072","Epping Forest","E10000012","Essex","CSP018","Active Essex","E15000006","Eastern",539530,200922,51.689720999999999,1.7180000000000001E-2]
["KRUNCH GYM","N",1038033,"Ability House 121","Brooker Road","Waltham Abbey","EN9 1JH","Studio","Studio",4080460,"Studios",0,"Yes","Yes","Parking, Finding and reaching the entrance, Reception area, Doorways, Changing facilities, Activity areas, Toilets, Social areas, Emergency exits",null,"Operational","Registered Membership use","Commercial","Commercial Management",2008,"No","n/a","n/a","2017-03-27","2017-03-27","n/a","n/a","E00110844","E01021817","E02004534","E14000693","Epping Forest","E05004178","Waltham Abbey South West","E07000072","Epping Forest","E10000012","Essex","CSP018","Active Essex","E15000006","Eastern",538104.86,200053.88,51.682271999999998,-3.7680000000000001E-3]
["KRUNCH GYM",1038033,"Ability House 121","N","Brooker Road","Waltham Abbey","EN9 1JH","Health and Fitness Suite","Health and Fitness Suite",2080459,"Stations",91,"Yes","Yes","Parking, Finding and reaching the entrance, Reception area, Doorways, Changing facilities, Activity areas, Toilets, Social areas, Emergency exits",null,"Operational","Registered Membership use","Commercial","Commercial Management",2008,"No","n/a","n/a","2017-03-27","2017-03-27","n/a","n/a","E00110844","E01021817","E02004534","E14000693","Epping Forest","E05004178","Waltham Abbey South West","E07000072","Epping Forest","E10000012","Essex","CSP018","Active Essex","E15000006","Eastern",538104.86,200053.88,51.682271999999998,-3.7680000000000001E-3]
["LOUGHTON LEISURE CENTRE","Y",1003751,null,"Traps Hill","Loughton","IG10 1SZ","Swimming Pool","Main/General",2011668,"Lanes",6,"Yes","Yes","Parking, Finding and reaching the entrance, Reception area, Doorways, Changing facilities, Activity areas, Toilets, Social areas, Spectator areas, Emergency exits",null,"Operational","Pay and Play","Local Authority","Commercial Management",2003,"No","n/a","n/a","2017-03-02","2017-03-02","n/a","n/a","E00110693","E01021791","E02004538","E14000693","Epping Forest","E05004165","Loughton St Mary's","E07000072","Epping Forest","E10000012","Essex","CSP018","Active Essex","E15000006","Eastern",542462.63,196413.5,51.648474,5.774E-2]
["LOUGHTON LEISURE CENTRE","Y",1003751,null,"Traps Hill","Loughton","IG10 1SZ","Swimming Pool","Learner/Teaching/Training",2021929,"Lanes",0,"Yes","Yes","Parking, Finding and reaching the entrance, Reception area, Doorways, Changing facilities, Activity areas, Toilets, Social areas, Spectator areas, Emergency exits",null,"Operational","Pay and Play","Local Authority","Commercial Management",2003,"No","n/a","n/a","2017-03-02","2017-03-02","n/a","n/a","E00110693","E01021791","E02004538","E14000693","Epping Forest","E05004165","Loughton St Mary's","E07000072","Epping Forest","E10000012","Essex","CSP018","Active Essex","E15000006","Eastern",542462.63,196413.5,51.648474,5.774E-2]
["LOUGHTON LEISURE CENTRE","Y",1003751,null,"Traps Hill","Loughton","IG10 1SZ","Studio","Studio",4003007,"Studios",1,"Yes","Yes","Parking, Finding and reaching the entrance, Reception area, Doorways, Changing facilities, Activity areas, Toilets, Social areas, Spectator areas, Emergency exits",null,"Operational","Registered Membership use","Local Authority","Commercial Management",2003,"Yes",2010,"n/a","2017-03-02","2017-03-02","n/a","n/a","E00110693","E01021791","E02004538","E14000693","Epping Forest","E05004165","Loughton St Mary's","E07000072","Epping Forest","E10000012","Essex","CSP018","Active Essex","E15000006","Eastern",542462.63,196413.5,51.648474,5.774E-2]
["LOUGHTON LEISURE CENTRE","Y",1003751,null,"Traps Hill","Loughton","IG10 1SZ","Studio","Studio",4109394,"Studios",1,"Yes","Yes","Parking, Finding and reaching the entrance, Reception area, Doorways, Changing facilities, Activity areas, Toilets, Social areas, Spectator areas, Emergency exits",null,"Operational","Registered Membership use","Local Authority","Commercial Management",2011,"No","n/a","n/a","2017-03-02","2017-03-02","n/a","n/a","E00110693","E01021791","E02004538","E14000693","Epping Forest","E05004165","Loughton St Mary's","E07000072","Epping Forest","E10000012","Essex","CSP018","Active Essex","E15000006","Eastern",542462.63,196413.5,51.648474,5.774E-2]
["LOUGHTON LEISURE CENTRE",1003751,null,"Y","Traps Hill","Loughton","IG10 1SZ","Health and Fitness Suite","Health and Fitness Suite",2017485,"Stations",90,"Yes","Yes","Parking, Finding and reaching the entrance, Reception area, Doorways, Changing facilities, Activity areas, Toilets, Social areas, Spectator areas, Emergency exits",null,"Operational","Pay and Play","Local Authority","Commercial Management",2003,"Yes",2011,"n/a","2017-03-02","2017-03-02","n/a","n/a","E00110693","E01021791","E02004538","E14000693","Epping Forest","E05004165","Loughton St Mary's","E07000072","Epping Forest","E10000012","Essex","CSP018","Active Essex","E15000006","Eastern",542462.63,196413.5,51.648474,5.774E-2]
["MARRIOTT LEISURE CLUB (WALTHAM ABBEY)","N",1001420,null,"Old Shire Lane","Waltham Abbey","EN9 3LX","Swimming Pool","Main/General",2010545,"Lanes",0,"Yes","Yes","Parking, Finding and reaching the entrance, Reception area, Doorways, Changing facilities, Activity areas, Toilets, Emergency exits",null,"Operational","Registered Membership use","Commercial","Commercial Management",1988,"Yes",2008,"n/a","2017-06-21","2016-02-11","n/a","n/a","E00110782","E01021810","E02004534","E14000693","Epping Forest","E05004175","Waltham Abbey Honey Lane","E07000072","Epping Forest","E10000012","Essex","CSP018","Active Essex","E15000006","Eastern",540323,200031,51.681516999999999,2.8285999999999999E-2]
["MARRIOTT LEISURE CLUB (WALTHAM ABBEY)","N",1001420,null,"Old Shire Lane","Waltham Abbey","EN9 3LX","Swimming Pool","Learner/Teaching/Training",4106478,"Lanes",0,"Yes","Yes","Parking, Finding and reaching the entrance, Reception area, Doorways, Changing facilities, Activity areas, Toilets, Emergency exits",null,"Operational","Registered Membership use","Commercial","Commercial Management",1988,"Yes",2008,"n/a","2017-06-21","2016-02-11","n/a","n/a","E00110782","E01021810","E02004534","E14000693","Epping Forest","E05004175","Waltham Abbey Honey Lane","E07000072","Epping Forest","E10000012","Essex","CSP018","Active Essex","E15000006","Eastern",540323,200031,51.681516999999999,2.8285999999999999E-2]
["MARRIOTT LEISURE CLUB (WALTHAM ABBEY)",1001420,null,"N","Old Shire Lane","Waltham Abbey","EN9 3LX","Health and Fitness Suite","Health and Fitness Suite",2016079,"Stations",18,"Yes","Yes","Parking, Finding and reaching the entrance, Reception area, Doorways, Changing facilities, Activity areas, Toilets, Emergency exits",null,"Operational","Registered Membership use","Commercial","Commercial Management",1988,"Yes",2011,"n/a","2017-06-21","2016-02-11","n/a","n/a","E00110782","E01021810","E02004534","E14000693","Epping Forest","E05004175","Waltham Abbey Honey Lane","E07000072","Epping Forest","E10000012","Essex","CSP018","Active Essex","E15000006","Eastern",540323,200031,51.681516999999999,2.8285999999999999E-2]
["METROPOLITAN POLICE (CHIGWELL SPORTS CLUB)",1036199,null,"N","High Road","Chigwell","IG7 6BD","Health and Fitness Suite","Health and Fitness Suite",2073269,"Stations",11,"Yes","Yes","Parking, Finding and reaching the entrance, Reception area, Doorways, Changing facilities, Activity areas, Toilets, Social areas, Emergency exits",null,"Operational","Sports Club / Community Association","Government","Sport Club",1986,"Yes",2003,"n/a","2016-10-10","2016-10-10","n/a","n/a","E00110480","E01021750","E02004542","E14000693","Epping Forest","E05004151","Chigwell Village","E07000072","Epping Forest","E10000012","Essex","CSP018","Active Essex","E15000006","Eastern",543807,193823,51.624856000000001,7.6093999999999995E-2]
["METROPOLITAN POLICE (CHIGWELL SPORTS CLUB)","N",1036199,null,"High Road","Chigwell","IG7 6BD","Squash Courts","Normal",4073290,"Courts",2,"Yes","Yes","Parking, Finding and reaching the entrance, Reception area, Doorways, Changing facilities, Activity areas, Toilets, Social areas, Emergency exits",null,"Operational","Sports Club / Community Association","Government","Sport Club",1986,"No","n/a","n/a","2016-10-10","2016-10-10","n/a","n/a","E00110480","E01021750","E02004542","E14000693","Epping Forest","E05004151","Chigwell Village","E07000072","Epping Forest","E10000012","Essex","CSP018","Active Essex","E15000006","Eastern",543807,193823,51.624856000000001,7.6093999999999995E-2]
["NAZEING PRIMARY SCHOOL","N",30005067,null,"HYDE MEAD","WALTHAM ABBEY","EN9 2HS","Swimming Pool","Lido",30009459,"Lanes",0,"No","Yes","Finding and reaching the entrance, Emergency exits",null,"Operational","Private Use","Community school","School/College/University (in house)","n/a","No","n/a","n/a","2017-02-21","2017-02-21",10012159291,"osgb5000005179472946","E00110698","E01021794","E02004528","E14000729","Harlow","E05004166","Lower Nazeing","E07000072","Epping Forest","E10000012","Essex","CSP018","Active Essex","E15000006","Eastern",539273,205889,51.734416000000003,1.5447000000000001E-2]
["Nuffield Health Chigwell Fitness & Wellbeing Gym","N",1000562,"Woolston Manor","Abridge Road","Chigwell","IG7 6BX","Swimming Pool","Main/General",2010130,"Lanes",3,"Yes","Yes","Parking, Finding and reaching the entrance, Reception area, Doorways, Changing facilities, Activity areas, Toilets, Social areas, Spectator areas, Emergency exits",null,"Operational","Registered Membership use","Commercial","Commercial Management",2004,"No","n/a","n/a","2017-01-25","2017-01-25","n/a","n/a","E00110480","E01021750","E02004542","E14000693","Epping Forest","E05004151","Chigwell Village","E07000072","Epping Forest","E10000012","Essex","CSP018","Active Essex","E15000006","Eastern",544842.6,195644.9,51.640960999999997,9.1797000000000004E-2]
["Nuffield Health Chigwell Fitness & Wellbeing Gym","N",1000562,"Woolston Manor","Abridge Road","Chigwell","IG7 6BX","Swimming Pool","Lido",2010131,"Lanes",0,"Yes","Yes","Parking, Finding and reaching the entrance, Reception area, Doorways, Changing facilities, Activity areas, Toilets, Social areas, Spectator areas, Emergency exits",null,"Temporarily Closed","Registered Membership use","Commercial","Commercial Management",2004,"No","n/a","n/a","2017-01-25","2017-01-25","n/a","n/a","E00110480","E01021750","E02004542","E14000693","Epping Forest","E05004151","Chigwell Village","E07000072","Epping Forest","E10000012","Essex","CSP018","Active Essex","E15000006","Eastern",544842.6,195644.9,51.640960999999997,9.1797000000000004E-2]
["Nuffield Health Chigwell Fitness & Wellbeing Gym","N",1000562,"Woolston Manor","Abridge Road","Chigwell","IG7 6BX","Swimming Pool","Learner/Teaching/Training",2010132,"Lanes",0,"Yes","Yes","Parking, Finding and reaching the entrance, Reception area, Doorways, Changing facilities, Activity areas, Toilets, Social areas, Spectator areas, Emergency exits",null,"Operational","Registered Membership use","Commercial","Commercial Management",2004,"No","n/a","n/a","2017-01-25","2017-01-25","n/a","n/a","E00110480","E01021750","E02004542","E14000693","Epping Forest","E05004151","Chigwell Village","E07000072","Epping Forest","E10000012","Essex","CSP018","Active Essex","E15000006","Eastern",544842.6,195644.9,51.640960999999997,9.1797000000000004E-2]
["Nuffield Health Chigwell Fitness & Wellbeing Gym","N",1000562,"Woolston Manor","Abridge Road","Chigwell","IG7 6BX","Studio","Studio",4000612,"Studios",0,"Yes","Yes","Parking, Finding and reaching the entrance, Reception area, Doorways, Changing facilities, Activity areas, Toilets, Social areas, Spectator areas, Emergency exits",null,"Operational","Registered Membership use","Commercial","Commercial Management",2004,"No","n/a","n/a","2017-01-25","2017-01-25","n/a","n/a","E00110480","E01021750","E02004542","E14000693","Epping Forest","E05004151","Chigwell Village","E07000072","Epping Forest","E10000012","Essex","CSP018","Active Essex","E15000006","Eastern",544842.6,195644.9,51.640960999999997,9.1797000000000004E-2]
["Nuffield Health Chigwell Fitness & Wellbeing Gym","N",1000562,"Woolston Manor","Abridge Road","Chigwell","IG7 6BX","Studio","Studio",4000613,"Studios",0,"Yes","Yes","Parking, Finding and reaching the entrance, Reception area, Doorways, Changing facilities, Activity areas, Toilets, Social areas, Spectator areas, Emergency exits",null,"Operational","Registered Membership use","Commercial","Commercial Management",2004,"No","n/a","n/a","2017-01-25","2017-01-25","n/a","n/a","E00110480","E01021750","E02004542","E14000693","Epping Forest","E05004151","Chigwell Village","E07000072","Epping Forest","E10000012","Essex","CSP018","Active Essex","E15000006","Eastern",544842.6,195644.9,51.640960999999997,9.1797000000000004E-2]
["Nuffield Health Chigwell Fitness & Wellbeing Gym","N",1000562,"Woolston Manor","Abridge Road","Chigwell","IG7 6BX","Studio","Studio",30001268,"Studios",0,"No","Yes","Parking, Finding and reaching the entrance, Reception area, Doorways, Changing facilities, Activity areas, Toilets, Social areas, Spectator areas, Emergency exits",null,"Operational","Registered Membership use","Commercial","Local Authority (in house)",2015,"No","n/a","n/a","2017-01-25","2017-01-25","n/a","n/a","E00110480","E01021750","E02004542","E14000693","Epping Forest","E05004151","Chigwell Village","E07000072","Epping Forest","E10000012","Essex","CSP018","Active Essex","E15000006","Eastern",544842.6,195644.9,51.640960999999997,9.1797000000000004E-2]
["Nuffield Health Chigwell Fitness & Wellbeing Gym",1000562,"Woolston Manor","N","Abridge Road","Chigwell","IG7 6BX","Health and Fitness Suite","Health and Fitness Suite",2015296,"Stations",150,"Yes","Yes","Parking, Finding and reaching the entrance, Reception area, Doorways, Changing facilities, Activity areas, Toilets, Social areas, Spectator areas, Emergency exits",null,"Operational","Registered Membership use","Commercial","Commercial Management",2004,"Yes",2011,"n/a","2017-01-25","2017-01-25","n/a","n/a","E00110480","E01021750","E02004542","E14000693","Epping Forest","E05004151","Chigwell Village","E07000072","Epping Forest","E10000012","Essex","CSP018","Active Essex","E15000006","Eastern",544842.6,195644.9,51.640960999999997,9.1797000000000004E-2]
["ONGAR LEISURE CENTRE","Y",1003759,null,"The Gables","Ongar","CM5 0GA","Swimming Pool","Main/General",2011671,"Lanes",6,"Yes","Yes","Parking, Finding and reaching the entrance, Reception area, Doorways, Changing facilities, Activity areas, Toilets, Emergency exits",null,"Operational","Pay and Play","Local Authority","Commercial Management",1977,"No","n/a","n/a","2017-02-13","2017-02-13","n/a","n/a","E00110757","E01021802","E02004530","E14000594","Brentwood and Ongar","E05004172","Shelley","E07000072","Epping Forest","E10000012","Essex","CSP018","Active Essex","E15000006","Eastern",555382.25,204281.8,51.715746000000003,0.24782899999999999]
["ONGAR LEISURE CENTRE","Y",1003759,null,"The Gables","Ongar","CM5 0GA","Studio","Studio",4073426,"Studios",1,"Yes","Yes","Parking, Finding and reaching the entrance, Reception area, Doorways, Changing facilities, Activity areas, Toilets, Emergency exits",null,"Operational","Pay and Play","Local Authority","Commercial Management",2006,"No","n/a","n/a","2017-02-13","2017-02-13","n/a","n/a","E00110757","E01021802","E02004530","E14000594","Brentwood and Ongar","E05004172","Shelley","E07000072","Epping Forest","E10000012","Essex","CSP018","Active Essex","E15000006","Eastern",555382.25,204281.8,51.715746000000003,0.24782899999999999]
["ONGAR LEISURE CENTRE","Y",1003759,null,"The Gables","Ongar","CM5 0GA","Studio","Studio",30001470,"Studios",1,"Yes","Yes","Parking, Finding and reaching the entrance, Reception area, Doorways, Changing facilities, Activity areas, Toilets, Emergency exits",null,"Operational","Pay and Play","Local Authority","Commercial Management",2006,"No","n/a","n/a","2017-02-13","2017-02-13","n/a","n/a","E00110757","E01021802","E02004530","E14000594","Brentwood and Ongar","E05004172","Shelley","E07000072","Epping Forest","E10000012","Essex","CSP018","Active Essex","E15000006","Eastern",555382.25,204281.8,51.715746000000003,0.24782899999999999]
["ONGAR LEISURE CENTRE",1003759,null,"Y","The Gables","Ongar","CM5 0GA","Health and Fitness Suite","Health and Fitness Suite",2017492,"Stations",40,"Yes","Yes","Parking, Finding and reaching the entrance, Reception area, Doorways, Changing facilities, Activity areas, Toilets, Emergency exits",null,"Operational","Pay and Play","Local Authority","Commercial Management",1979,"Yes",2011,"n/a","2017-02-13","2017-02-13","n/a","n/a","E00110757","E01021802","E02004530","E14000594","Brentwood and Ongar","E05004172","Shelley","E07000072","Epping Forest","E10000012","Essex","CSP018","Active Essex","E15000006","Eastern",555382.25,204281.8,51.715746000000003,0.24782899999999999]
["ONGAR LEISURE CENTRE","Y",1003759,null,"The Gables","Ongar","CM5 0GA","Sports Hall","Main",2003018,"Badminton courts",4,"Yes","Yes","Parking, Finding and reaching the entrance, Reception area, Doorways, Changing facilities, Activity areas, Toilets, Emergency exits",null,"Operational","Pay and Play","Local Authority","Commercial Management",1977,"No","n/a","n/a","2017-02-13","2017-02-13","n/a","n/a","E00110757","E01021802","E02004530","E14000594","Brentwood and Ongar","E05004172","Shelley","E07000072","Epping Forest","E10000012","Essex","CSP018","Active Essex","E15000006","Eastern",555382.25,204281.8,51.715746000000003,0.24782899999999999]
["PRO SW GYM","N",1044756,"Sterling House","Langston Road","Loughton","IG10 3TS","Studio","Studio",4113421,"Studios",1,"Yes","Yes","Parking, Reception area, Doorways, Activity areas, Emergency exits",null,"Operational","Registered Membership use","Commercial","Commercial Management",2011,"No","n/a","n/a","2017-01-09","2017-01-09","n/a","n/a","E00110612","E01021776","E02004537","E14000693","Epping Forest","E05004160","Loughton Broadway","E07000072","Epping Forest","E10000012","Essex","CSP018","Active Essex","E15000006","Eastern",544483.16,196085.66,51.645012999999999,8.6788000000000004E-2]
["PRO SW GYM",1044756,"Sterling House","N","Langston Road","Loughton","IG10 3TS","Health and Fitness Suite","Health and Fitness Suite",4113420,"Stations",24,"Yes","Yes","Parking, Reception area, Doorways, Activity areas, Emergency exits",null,"Operational","Registered Membership use","Commercial","Commercial Management",2011,"No","n/a","n/a","2017-01-09","2017-01-09","n/a","n/a","E00110612","E01021776","E02004537","E14000693","Epping Forest","E05004160","Loughton Broadway","E07000072","Epping Forest","E10000012","Essex","CSP018","Active Essex","E15000006","Eastern",544483.16,196085.66,51.645012999999999,8.6788000000000004E-2]
["RODING VALLEY HIGH SCHOOL","N",1204080,null,"Alderton Hill","Loughton","IG10 3JA","Sports Hall","Main",2212748,"Badminton courts",4,"Yes","Yes","Parking, Finding and reaching the entrance, Reception area, Doorways, Changing facilities, Activity areas, Toilets, Emergency exits","Parking: 2 disabled parking bays.","Operational","Sports Club / Community Association","Community school","School/College/University (in house)",1993,"Yes",2006,"n/a","2016-06-28","2016-06-28","n/a","n/a","E00110689","E01021791","E02004538","E14000693","Epping Forest","E05004165","Loughton St Mary's","E07000072","Epping Forest","E10000012","Essex","CSP018","Active Essex","E15000006","Eastern",542360,195842.6,51.643369999999997,5.6024999999999998E-2]
["RODING VALLEY HIGH SCHOOL","N",1204080,null,"Alderton Hill","Loughton","IG10 3JA","Sports Hall","Activity Hall",2212749,"Badminton courts",2,"Yes","Yes","Parking, Finding and reaching the entrance, Reception area, Doorways, Changing facilities, Activity areas, Toilets, Emergency exits","Parking: 2 disabled parking bays.","Operational","Sports Club / Community Association","Community school","School/College/University (in house)",1992,"No","n/a","n/a","2016-06-28","2016-06-28","n/a","n/a","E00110689","E01021791","E02004538","E14000693","Epping Forest","E05004165","Loughton St Mary's","E07000072","Epping Forest","E10000012","Essex","CSP018","Active Essex","E15000006","Eastern",542360,195842.6,51.643369999999997,5.6024999999999998E-2]
["THE ALLNUTS HALL","N",1043591,null,"Allnutts Road","Epping","CM16 7BD","Sports Hall","Activity Hall",4110793,"Badminton courts",0,"No","Yes","Finding and reaching the entrance, Doorways, Activity areas, Emergency exits",null,"Operational","Pay and Play","Community Organisation","Community Organisation","n/a","Not Known","n/a","n/a","2011-07-08","2011-07-08","n/a","n/a","E00110521","E01021759","E02004532","E14000693","Epping Forest","E05004153","Epping Hemnall","E07000072","Epping Forest","E10000012","Essex","CSP018","Active Essex","E15000006","Eastern",546187,200990,51.688639000000002,0.11344600000000001]
["WALTHAM ABBEY SWIMMING POOL","Y",1003781,null,"Roundhills","Waltham Abbey","EN9 1UP","Swimming Pool","Main/General",2011688,"Lanes",5,"Yes","Yes","Parking, Finding and reaching the entrance, Reception area, Doorways, Changing facilities, Activity areas, Toilets, Social areas, Spectator areas, Emergency exits",null,"Operational","Pay and Play","Local Authority","Commercial Management",1967,"No","n/a","n/a","2017-01-19","2017-01-19","n/a","n/a","E00110802","E01021808","E02004534","E14000693","Epping Forest","E05004175","Waltham Abbey Honey Lane","E07000072","Epping Forest","E10000012","Essex","CSP018","Active Essex","E15000006","Eastern",538850,199956,51.681209000000003,6.9649999999999998E-3]
["WALTHAM ABBEY SWIMMING POOL","Y",1003781,null,"Roundhills","Waltham Abbey","EN9 1UP","Swimming Pool","Learner/Teaching/Training",2021930,"Lanes",0,"Yes","Yes","Parking, Finding and reaching the entrance, Reception area, Doorways, Changing facilities, Activity areas, Toilets, Social areas, Spectator areas, Emergency exits",null,"Operational","Pay and Play","Local Authority","Commercial Management",1967,"No","n/a","n/a","2017-01-19","2017-01-19","n/a","n/a","E00110802","E01021808","E02004534","E14000693","Epping Forest","E05004175","Waltham Abbey Honey Lane","E07000072","Epping Forest","E10000012","Essex","CSP018","Active Essex","E15000006","Eastern",538850,199956,51.681209000000003,6.9649999999999998E-3]
["WALTHAM ABBEY SWIMMING POOL","Y",1003781,null,"Roundhills","Waltham Abbey","EN9 1UP","Studio","Studio",4071274,"Studios",1,"Yes","Yes","Parking, Finding and reaching the entrance, Reception area, Doorways, Changing facilities, Activity areas, Toilets, Social areas, Emergency exits",null,"Operational","Registered Membership use","Local Authority","Commercial Management",2006,"No","n/a","n/a","2017-01-19","2017-01-19","n/a","n/a","E00110802","E01021808","E02004534","E14000693","Epping Forest","E05004175","Waltham Abbey Honey Lane","E07000072","Epping Forest","E10000012","Essex","CSP018","Active Essex","E15000006","Eastern",538850,199956,51.681209000000003,6.9649999999999998E-3]
["WALTHAM ABBEY SWIMMING POOL",1003781,null,"Y","Roundhills","Waltham Abbey","EN9 1UP","Health and Fitness Suite","Health and Fitness Suite",2017505,"Stations",50,"Yes","Yes","Parking, Finding and reaching the entrance, Reception area, Doorways, Changing facilities, Activity areas, Toilets, Social areas, Emergency exits",null,"Operational","Pay and Play","Local Authority","Commercial Management",1982,"Yes",2011,"n/a","2017-01-19","2017-01-19","n/a","n/a","E00110802","E01021808","E02004534","E14000693","Epping Forest","E05004175","Waltham Abbey Honey Lane","E07000072","Epping Forest","E10000012","Essex","CSP018","Active Essex","E15000006","Eastern",538850,199956,51.681209000000003,6.9649999999999998E-3]
["WEST HATCH HIGH SCHOOL ACADEMY","N",1204076,null,"High Road","Chigwell","IG7 5BT","Swimming Pool","Main/General",2212735,"Lanes",5,"Yes","Yes","Parking, Finding and reaching the entrance, Reception area, Doorways, Activity areas, Emergency exits","Activity Areas: Hoist for Swimming Pool is due for installation.","Operational","Sports Club / Community Association","Academies","School/College/University (in house)",1957,"Yes",2010,"n/a","2016-11-22","2016-11-22","n/a","n/a","E00110485","E01021752","E02004542","E14000693","Epping Forest","E05004151","Chigwell Village","E07000072","Epping Forest","E10000012","Essex","CSP018","Active Essex","E15000006","Eastern",542935.30000000005,192420.8,51.612478000000003,6.2938999999999995E-2]
["WEST HATCH HIGH SCHOOL ACADEMY",1204076,null,"N","High Road","Chigwell","IG7 5BT","Health and Fitness Suite","Health and Fitness Suite",2078975,"Stations",6,"Yes","Yes","Parking, Finding and reaching the entrance, Reception area, Doorways, Activity areas, Emergency exits","Activity Areas: Hoist for Swimming Pool is due for installation.","Operational","Private Use","Academies","School/College/University (in house)",2007,"Yes",2009,"n/a","2016-11-22","2016-11-22","n/a","n/a","E00110485","E01021752","E02004542","E14000693","Epping Forest","E05004151","Chigwell Village","E07000072","Epping Forest","E10000012","Essex","CSP018","Active Essex","E15000006","Eastern",542935.30000000005,192420.8,51.612478000000003,6.2938999999999995E-2]
["WEST HATCH HIGH SCHOOL ACADEMY","N",1204076,null,"High Road","Chigwell","IG7 5BT","Sports Hall","Activity Hall",2212734,"Badminton courts",1,"Yes","Yes","Parking, Finding and reaching the entrance, Reception area, Doorways, Activity areas, Emergency exits","Activity Areas: Hoist for Swimming Pool is due for installation.","Operational","Sports Club / Community Association","Academies","School/College/University (in house)",1957,"No","n/a","n/a","2016-11-22","2016-11-22","n/a","n/a","E00110485","E01021752","E02004542","E14000693","Epping Forest","E05004151","Chigwell Village","E07000072","Epping Forest","E10000012","Essex","CSP018","Active Essex","E15000006","Eastern",542935.30000000005,192420.8,51.612478000000003,6.2938999999999995E-2]
["WOOLSTON MANOR GOLF AND COUNTRY CLUB","N",1041754,null,"Abridge Road","Chigwell","IG7 6BX","Swimming Pool","Lido",2098722,"Lanes",2,"Yes","Yes","Parking, Finding and reaching the entrance, Reception area, Doorways, Changing facilities, Activity areas, Toilets, Social areas, Spectator areas, Emergency exits",null,"Temporarily Closed","Sports Club / Community Association","Commercial","Commercial Management",2007,"No","n/a","n/a","2016-11-07","2016-11-07","n/a","n/a","E00110480","E01021750","E02004542","E14000693","Epping Forest","E05004151","Chigwell Village","E07000072","Epping Forest","E10000012","Essex","CSP018","Active Essex","E15000006","Eastern",544970.22,195794.98,51.642276000000003,9.3701999999999994E-2]
["WOOLSTON MANOR GOLF AND COUNTRY CLUB",1041754,null,"N","Abridge Road","Chigwell","IG7 6BX","Health and Fitness Suite","Health and Fitness Suite",4106588,"Stations",6,"Yes","Yes","Parking, Finding and reaching the entrance, Reception area, Doorways, Changing facilities, Activity areas, Toilets, Social areas, Emergency exits",null,"Operational","Registered Membership use","Commercial","Commercial Management",2008,"No","n/a","n/a","2016-11-07","2016-11-07","n/a","n/a","E00110480","E01021750","E02004542","E14000693","Epping Forest","E05004151","Chigwell Village","E07000072","Epping Forest","E10000012","Essex","CSP018","Active Essex","E15000006","Eastern",544970.22,195794.98,51.642276000000003,9.3701999999999994E-2]

{"sheet":"Swimming Pools","index":2,"n_rows":18,"n_cols":47,"rows_kept":18,"cut":false,"hidden":false,"merged":[]}
["Site Name","Community Use","Site Id","Building Name or Number","Thoroughfare","Post Town"," Post Code","Facility Type","Facility Sub Type","Facility Id","Unit","Number","Changing Rooms","Disability","Disability Details","Disability Notes","Facility Status","Access Type","Ownership Type","Management Type","Year Built","Refurbished","Year Refurbished","Closed Date","Last Updated Date","Last Full Audit Date","UPRN","TOID","Output Area Code","Lower Super Output Area Code","Middle Super Output Area Code","Parliamentary Constituency Code","Parliamentary Constituency Name","Ward Code","Ward Name","Local Authority Code","Local Authority Name","County Code","County Name","CSP Code","CSP Name","Region Code","Region Name","Easting","Northing","Latitude","Longitude"]
["CHIGWELL SCHOOL","N",1204104,null,"High Road","Chigwell","IG7 6QF","Swimming Pool","Lido",2212888,"Lanes",4,"Yes","Yes","Parking, Finding and reaching the entrance, Reception area, Doorways, Changing facilities, Activity areas, Toilets, Emergency exits",null,"Temporarily Closed","Private Use","Other Independent School","School/College/University (in house)","n/a","No","n/a","n/a","2016-09-15","2016-09-15","n/a","n/a","E00110481","E01021750","E02004542","E14000693","Epping Forest","E05004151","Chigwell Village","E07000072","Epping Forest","E10000012","Essex","CSP018","Active Essex","E15000006","Eastern",544151,193880,51.625279999999997,8.1084000000000003E-2]
["DAVENANT FOUNDATION SCHOOL","N",1204252,null,"Chester Road","Loughton","IG10 2LD","Swimming Pool","Main/General",2213540,"Lanes",4,"Yes","Yes","Parking, Finding and reaching the entrance, Reception area, Doorways, Changing facilities, Activity areas, Toilets, Spectator areas, Emergency exits","Activity Areas: Hoist available for Swimming Pool.","Operational","Sports Club / Community Association","Academies","School/College/University (in house)",1999,"No","n/a","n/a","2016-11-28","2016-11-28","n/a","n/a","E00110613","E01021774","E02004537","E14000693","Epping Forest","E05004160","Loughton Broadway","E07000072","Epping Forest","E10000012","Essex","CSP018","Active Essex","E15000006","Eastern",544283.1,198030.7,51.662540999999997,8.4700999999999999E-2]
["DAVID LLOYD CLUB (CHIGWELL)","N",1000023,null,"Roding Lane","Buckhurst Hill","IG9 6BJ","Swimming Pool","Main/General",2009739,"Lanes",3,"Yes","Yes","Parking, Finding and reaching the entrance, Reception area, Doorways, Changing facilities, Activity areas, Toilets, Social areas, Emergency exits","Parking: 10 bays","Operational","Registered Membership use","Commercial","Commercial Management",1992,"Yes",2014,"n/a","2016-12-30","2016-12-30","n/a","n/a","E00110480","E01021750","E02004542","E14000693","Epping Forest","E05004151","Chigwell Village","E07000072","Epping Forest","E10000012","Essex","CSP018","Active Essex","E15000006","Eastern",542871.72,194263.49,51.629052000000001,6.2771999999999994E-2]
["DAVID LLOYD CLUB (CHIGWELL)","N",1000023,null,"Roding Lane","Buckhurst Hill","IG9 6BJ","Swimming Pool","Lido",2009740,"Lanes",1,"Yes","Yes","Parking, Finding and reaching the entrance, Reception area, Doorways, Changing facilities, Activity areas, Toilets, Social areas, Emergency exits","Parking: 10 bays","Operational","Registered Membership use","Commercial","Commercial Management",1992,"Yes",2002,"n/a","2016-12-30","2016-12-30","n/a","n/a","E00110480","E01021750","E02004542","E14000693","Epping Forest","E05004151","Chigwell Village","E07000072","Epping Forest","E10000012","Essex","CSP018","Active Essex","E15000006","Eastern",542871.72,194263.49,51.629052000000001,6.2771999999999994E-2]
["LOUGHTON LEISURE CENTRE","Y",1003751,null,"Traps Hill","Loughton","IG10 1SZ","Swimming Pool","Main/General",2011668,"Lanes",6,"Yes","Yes","Parking, Finding and reaching the entrance, Reception area, Doorways, Changing facilities, Activity areas, Toilets, Social areas, Spectator areas, Emergency exits",null,"Operational","Pay and Play","Local Authority","Commercial Management",2003,"No","n/a","n/a","2017-03-02","2017-03-02","n/a","n/a","E00110693","E01021791","E02004538","E14000693","Epping Forest","E05004165","Loughton St Mary's","E07000072","Epping Forest","E10000012","Essex","CSP018","Active Essex","E15000006","Eastern",542462.63,196413.5,51.648474,5.774E-2]
["LOUGHTON LEISURE CENTRE","Y",1003751,null,"Traps Hill","Loughton","IG10 1SZ","Swimming Pool","Learner/Teaching/Training",2021929,"Lanes",0,"Yes","Yes","Parking, Finding and reaching the entrance, Reception area, Doorways, Changing facilities, Activity areas, Toilets, Social areas, Spectator areas, Emergency exits",null,"Operational","Pay and Play","Local Authority","Commercial Management",2003,"No","n/a","n/a","2017-03-02","2017-03-02","n/a","n/a","E00110693","E01021791","E02004538","E14000693","Epping Forest","E05004165","Loughton St Mary's","E07000072","Epping Forest","E10000012","Essex","CSP018","Active Essex","E15000006","Eastern",542462.63,196413.5,51.648474,5.774E-2]
["MARRIOTT LEISURE CLUB (WALTHAM ABBEY)","N",1001420,null,"Old Shire Lane","Waltham Abbey","EN9 3LX","Swimming Pool","Main/General",2010545,"Lanes",0,"Yes","Yes","Parking, Finding and reaching the entrance, Reception area, Doorways, Changing facilities, Activity areas, Toilets, Emergency exits",null,"Operational","Registered Membership use","Commercial","Commercial Management",1988,"Yes",2008,"n/a","2017-06-21","2016-02-11","n/a","n/a","E00110782","E01021810","E02004534","E14000693","Epping Forest","E05004175","Waltham Abbey Honey Lane","E07000072","Epping Forest","E10000012","Essex","CSP018","Active Essex","E15000006","Eastern",540323,200031,51.681516999999999,2.8285999999999999E-2]
["MARRIOTT LEISURE CLUB (WALTHAM ABBEY)","N",1001420,null,"Old Shire Lane","Waltham Abbey","EN9 3LX","Swimming Pool","Learner/Teaching/Training",4106478,"Lanes",0,"Yes","Yes","Parking, Finding and reaching the entrance, Reception area, Doorways, Changing facilities, Activity areas, Toilets, Emergency exits",null,"Operational","Registered Membership use","Commercial","Commercial Management",1988,"Yes",2008,"n/a","2017-06-21","2016-02-11","n/a","n/a","E00110782","E01021810","E02004534","E14000693","Epping Forest","E05004175","Waltham Abbey Honey Lane","E07000072","Epping Forest","E10000012","Essex","CSP018","Active Essex","E15000006","Eastern",540323,200031,51.681516999999999,2.8285999999999999E-2]
["NAZEING PRIMARY SCHOOL","N",30005067,null,"HYDE MEAD","WALTHAM ABBEY","EN9 2HS","Swimming Pool","Lido",30009459,"Lanes",0,"No","Yes","Finding and reaching the entrance, Emergency exits",null,"Operational","Private Use","Community school","School/College/University (in house)","n/a","No","n/a","n/a","2017-02-21","2017-02-21",10012159291,"osgb5000005179472946","E00110698","E01021794","E02004528","E14000729","Harlow","E05004166","Lower Nazeing","E07000072","Epping Forest","E10000012","Essex","CSP018","Active Essex","E15000006","Eastern",539273,205889,51.734416000000003,1.5447000000000001E-2]
["Nuffield Health Chigwell Fitness & Wellbeing Gym","N",1000562,"Woolston Manor","Abridge Road","Chigwell","IG7 6BX","Swimming Pool","Main/General",2010130,"Lanes",3,"Yes","Yes","Parking, Finding and reaching the entrance, Reception area, Doorways, Changing facilities, Activity areas, Toilets, Social areas, Spectator areas, Emergency exits",null,"Operational","Registered Membership use","Commercial","Commercial Management",2004,"No","n/a","n/a","2017-01-25","2017-01-25","n/a","n/a","E00110480","E01021750","E02004542","E14000693","Epping Forest","E05004151","Chigwell Village","E07000072","Epping Forest","E10000012","Essex","CSP018","Active Essex","E15000006","Eastern",544842.6,195644.9,51.640960999999997,9.1797000000000004E-2]
["Nuffield Health Chigwell Fitness & Wellbeing Gym","N",1000562,"Woolston Manor","Abridge Road","Chigwell","IG7 6BX","Swimming Pool","Lido",2010131,"Lanes",0,"Yes","Yes","Parking, Finding and reaching the entrance, Reception area, Doorways, Changing facilities, Activity areas, Toilets, Social areas, Spectator areas, Emergency exits",null,"Temporarily Closed","Registered Membership use","Commercial","Commercial Management",2004,"No","n/a","n/a","2017-01-25","2017-01-25","n/a","n/a","E00110480","E01021750","E02004542","E14000693","Epping Forest","E05004151","Chigwell Village","E07000072","Epping Forest","E10000012","Essex","CSP018","Active Essex","E15000006","Eastern",544842.6,195644.9,51.640960999999997,9.1797000000000004E-2]
["Nuffield Health Chigwell Fitness & Wellbeing Gym","N",1000562,"Woolston Manor","Abridge Road","Chigwell","IG7 6BX","Swimming Pool","Learner/Teaching/Training",2010132,"Lanes",0,"Yes","Yes","Parking, Finding and reaching the entrance, Reception area, Doorways, Changing facilities, Activity areas, Toilets, Social areas, Spectator areas, Emergency exits",null,"Operational","Registered Membership use","Commercial","Commercial Management",2004,"No","n/a","n/a","2017-01-25","2017-01-25","n/a","n/a","E00110480","E01021750","E02004542","E14000693","Epping Forest","E05004151","Chigwell Village","E07000072","Epping Forest","E10000012","Essex","CSP018","Active Essex","E15000006","Eastern",544842.6,195644.9,51.640960999999997,9.1797000000000004E-2]
["ONGAR LEISURE CENTRE","Y",1003759,null,"The Gables","Ongar","CM5 0GA","Swimming Pool","Main/General",2011671,"Lanes",6,"Yes","Yes","Parking, Finding and reaching the entrance, Reception area, Doorways, Changing facilities, Activity areas, Toilets, Emergency exits",null,"Operational","Pay and Play","Local Authority","Commercial Management",1977,"No","n/a","n/a","2017-02-13","2017-02-13","n/a","n/a","E00110757","E01021802","E02004530","E14000594","Brentwood and Ongar","E05004172","Shelley","E07000072","Epping Forest","E10000012","Essex","CSP018","Active Essex","E15000006","Eastern",555382.25,204281.8,51.715746000000003,0.24782899999999999]
["WALTHAM ABBEY SWIMMING POOL","Y",1003781,null,"Roundhills","Waltham Abbey","EN9 1UP","Swimming Pool","Main/General",2011688,"Lanes",5,"Yes","Yes","Parking, Finding and reaching the entrance, Reception area, Doorways, Changing facilities, Activity areas, Toilets, Social areas, Spectator areas, Emergency exits",null,"Operational","Pay and Play","Local Authority","Commercial Management",1967,"No","n/a","n/a","2017-01-19","2017-01-19","n/a","n/a","E00110802","E01021808","E02004534","E14000693","Epping Forest","E05004175","Waltham Abbey Honey Lane","E07000072","Epping Forest","E10000012","Essex","CSP018","Active Essex","E15000006","Eastern",538850,199956,51.681209000000003,6.9649999999999998E-3]
["WALTHAM ABBEY SWIMMING POOL","Y",1003781,null,"Roundhills","Waltham Abbey","EN9 1UP","Swimming Pool","Learner/Teaching/Training",2021930,"Lanes",0,"Yes","Yes","Parking, Finding and reaching the entrance, Reception area, Doorways, Changing facilities, Activity areas, Toilets, Social areas, Spectator areas, Emergency exits",null,"Operational","Pay and Play","Local Authority","Commercial Management",1967,"No","n/a","n/a","2017-01-19","2017-01-19","n/a","n/a","E00110802","E01021808","E02004534","E14000693","Epping Forest","E05004175","Waltham Abbey Honey Lane","E07000072","Epping Forest","E10000012","Essex","CSP018","Active Essex","E15000006","Eastern",538850,199956,51.681209000000003,6.9649999999999998E-3]
["WEST HATCH HIGH SCHOOL ACADEMY","N",1204076,null,"High Road","Chigwell","IG7 5BT","Swimming Pool","Main/General",2212735,"Lanes",5,"Yes","Yes","Parking, Finding and reaching the entrance, Reception area, Doorways, Activity areas, Emergency exits","Activity Areas: Hoist for Swimming Pool is due for installation.","Operational","Sports Club / Community Association","Academies","School/College/University (in house)",1957,"Yes",2010,"n/a","2016-11-22","2016-11-22","n/a","n/a","E00110485","E01021752","E02004542","E14000693","Epping Forest","E05004151","Chigwell Village","E07000072","Epping Forest","E10000012","Essex","CSP018","Active Essex","E15000006","Eastern",542935.30000000005,192420.8,51.612478000000003,6.2938999999999995E-2]
["WOOLSTON MANOR GOLF AND COUNTRY CLUB","N",1041754,null,"Abridge Road","Chigwell","IG7 6BX","Swimming Pool","Lido",2098722,"Lanes",2,"Yes","Yes","Parking, Finding and reaching the entrance, Reception area, Doorways, Changing facilities, Activity areas, Toilets, Social areas, Spectator areas, Emergency exits",null,"Temporarily Closed","Sports Club / Community Association","Commercial","Commercial Management",2007,"No","n/a","n/a","2016-11-07","2016-11-07","n/a","n/a","E00110480","E01021750","E02004542","E14000693","Epping Forest","E05004151","Chigwell Village","E07000072","Epping Forest","E10000012","Essex","CSP018","Active Essex","E15000006","Eastern",544970.22,195794.98,51.642276000000003,9.3701999999999994E-2]

{"sheet":"Studios","index":3,"n_rows":16,"n_cols":47,"rows_kept":16,"cut":false,"hidden":false,"merged":[]}
["Site Name","Community Use","Site Id","Building Name or Number","Thoroughfare","Post Town"," Post Code","Facility Type","Facility Sub Type","Facility Id","Unit","Number","Changing Rooms","Disability","Disability Details","Disability Notes","Facility Status","Access Type","Ownership Type","Management Type","Year Built","Refurbished","Year Refurbished","Closed Date","Last Updated Date","Last Full Audit Date","UPRN","TOID","Output Area Code","Lower Super Output Area Code","Middle Super Output Area Code","Parliamentary Constituency Code","Parliamentary Constituency Name","Ward Code","Ward Name","Local Authority Code","Local Authority Name","County Code","County Name","CSP Code","CSP Name","Region Code","Region Name","Easting","Northing","Latitude","Longitude"]
["DAVID LLOYD CLUB (CHIGWELL)","N",1000023,null,"Roding Lane","Buckhurst Hill","IG9 6BJ","Studio","Studio",4000044,"Studios",0,"Yes","Yes","Parking, Finding and reaching the entrance, Reception area, Doorways, Changing facilities, Activity areas, Toilets, Social areas, Emergency exits","Parking: 10 bays","Operational","Registered Membership use","Commercial","Commercial Management",1992,"Yes",2014,"n/a","2016-12-30","2016-12-30","n/a","n/a","E00110480","E01021750","E02004542","E14000693","Epping Forest","E05004151","Chigwell Village","E07000072","Epping Forest","E10000012","Essex","CSP018","Active Essex","E15000006","Eastern",542871.72,194263.49,51.629052000000001,6.2771999999999994E-2]
["DAVID LLOYD CLUB (CHIGWELL)","N",1000023,null,"Roding Lane","Buckhurst Hill","IG9 6BJ","Studio","Studio",4000045,"Studios",0,"Yes","Yes","Parking, Finding and reaching the entrance, Reception area, Doorways, Changing facilities, Activity areas, Toilets, Social areas, Emergency exits","Parking: 10 bays","Operational","Registered Membership use","Commercial","Commercial Management",1992,"Yes",2014,"n/a","2016-12-30","2016-12-30","n/a","n/a","E00110480","E01021750","E02004542","E14000693","Epping Forest","E05004151","Chigwell Village","E07000072","Epping Forest","E10000012","Essex","CSP018","Active Essex","E15000006","Eastern",542871.72,194263.49,51.629052000000001,6.2771999999999994E-2]
["DEBDEN PARK HIGH SCHOOL","N",1008866,null,"Willingale Road","Loughton","IG10 2BQ","Studio","Studio",4078099,"Studios",0,"Yes","Yes","Parking, Finding and reaching the entrance, Reception area, Doorways, Changing facilities, Activity areas, Toilets, Emergency exits",null,"Operational","Pay and Play","Academies","Other",2001,"No","n/a","n/a","2016-08-22","2016-08-22","n/a","n/a","E00110611","E01021775","E02004537","E14000693","Epping Forest","E05004160","Loughton Broadway","E07000072","Epping Forest","E10000012","Essex","CSP018","Active Essex","E15000006","Eastern",544585,197047,51.653624999999998,8.8655999999999999E-2]
["EPPING SPORTS CENTRE","Y",1003733,25,"Hemnall Street","Epping","CM16 4LU","Studio","Studio",4002988,"Studios",0,"Yes","Yes","Parking, Finding and reaching the entrance, Reception area, Doorways, Changing facilities, Activity areas, Toilets, Emergency exits",null,"Operational","Pay and Play","Local Authority","Commercial Management",1970,"No","n/a","n/a","2017-03-14","2017-03-14","n/a","n/a","E00110509","E01021758","E02004532","E14000693","Epping Forest","E05004153","Epping Hemnall","E07000072","Epping Forest","E10000012","Essex","CSP018","Active Essex","E15000006","Eastern",545887.69999999995,201811.65,51.696100000000001,0.109462]
["KING HAROLD ACADEMY SPORTS CENTRE","N",1003780,null,"Broomstick Hall Road","Waltham Abbey","EN9 1LF","Studio","Studio",4003044,"Studios",0,"Yes","Not Known",null,null,"Operational","Private Use","Academies","Not Known",2003,"No","n/a","n/a","2017-03-29","2017-03-29","n/a","n/a","E00110783","E01021807","E02004534","E14000693","Epping Forest","E05004175","Waltham Abbey Honey Lane","E07000072","Epping Forest","E10000012","Essex","CSP018","Active Essex","E15000006","Eastern",539530,200922,51.689720999999999,1.7180000000000001E-2]
["KRUNCH GYM","N",1038033,"Ability House 121","Brooker Road","Waltham Abbey","EN9 1JH","Studio","Studio",4080460,"Studios",0,"Yes","Yes","Parking, Finding and reaching the entrance, Reception area, Doorways, Changing facilities, Activity areas, Toilets, Social areas, Emergency exits",null,"Operational","Registered Membership use","Commercial","Commercial Management",2008,"No","n/a","n/a","2017-03-27","2017-03-27","n/a","n/a","E00110844","E01021817","E02004534","E14000693","Epping Forest","E05004178","Waltham Abbey South West","E07000072","Epping Forest","E10000012","Essex","CSP018","Active Essex","E15000006","Eastern",538104.86,200053.88,51.682271999999998,-3.7680000000000001E-3]
["LOUGHTON LEISURE CENTRE","Y",1003751,null,"Traps Hill","Loughton","IG10 1SZ","Studio","Studio",4003007,"Studios",1,"Yes","Yes","Parking, Finding and reaching the entrance, Reception area, Doorways, Changing facilities, Activity areas, Toilets, Social areas, Spectator areas, Emergency exits",null,"Operational","Registered Membership use","Local Authority","Commercial Management",2003,"Yes",2010,"n/a","2017-03-02","2017-03-02","n/a","n/a","E00110693","E01021791","E02004538","E14000693","Epping Forest","E05004165","Loughton St Mary's","E07000072","Epping Forest","E10000012","Essex","CSP018","Active Essex","E15000006","Eastern",542462.63,196413.5,51.648474,5.774E-2]
["LOUGHTON LEISURE CENTRE","Y",1003751,null,"Traps Hill","Loughton","IG10 1SZ","Studio","Studio",4109394,"Studios",1,"Yes","Yes","Parking, Finding and reaching the entrance, Reception area, Doorways, Changing facilities, Activity areas, Toilets, Social areas, Spectator areas, Emergency exits",null,"Operational","Registered Membership use","Local Authority","Commercial Management",2011,"No","n/a","n/a","2017-03-02","2017-03-02","n/a","n/a","E00110693","E01021791","E02004538","E14000693","Epping Forest","E05004165","Loughton St Mary's","E07000072","Epping Forest","E10000012","Essex","CSP018","Active Essex","E15000006","Eastern",542462.63,196413.5,51.648474,5.774E-2]
["Nuffield Health Chigwell Fitness & Wellbeing Gym","N",1000562,"Woolston Manor","Abridge Road","Chigwell","IG7 6BX","Studio","Studio",4000612,"Studios",0,"Yes","Yes","Parking, Finding and reaching the entrance, Reception area, Doorways, Changing facilities, Activity areas, Toilets, Social areas, Spectator areas, Emergency exits",null,"Operational","Registered Membership use","Commercial","Commercial Management",2004,"No","n/a","n/a","2017-01-25","2017-01-25","n/a","n/a","E00110480","E01021750","E02004542","E14000693","Epping Forest","E05004151","Chigwell Village","E07000072","Epping Forest","E10000012","Essex","CSP018","Active Essex","E15000006","Eastern",544842.6,195644.9,51.640960999999997,9.1797000000000004E-2]
["Nuffield Health Chigwell Fitness & Wellbeing Gym","N",1000562,"Woolston Manor","Abridge Road","Chigwell","IG7 6BX","Studio","Studio",4000613,"Studios",0,"Yes","Yes","Parking, Finding and reaching the entrance, Reception area, Doorways, Changing facilities, Activity areas, Toilets, Social areas, Spectator areas, Emergency exits",null,"Operational","Registered Membership use","Commercial","Commercial Management",2004,"No","n/a","n/a","2017-01-25","2017-01-25","n/a","n/a","E00110480","E01021750","E02004542","E14000693","Epping Forest","E05004151","Chigwell Village","E07000072","Epping Forest","E10000012","Essex","CSP018","Active Essex","E15000006","Eastern",544842.6,195644.9,51.640960999999997,9.1797000000000004E-2]
["Nuffield Health Chigwell Fitness & Wellbeing Gym","N",1000562,"Woolston Manor","Abridge Road","Chigwell","IG7 6BX","Studio","Studio",30001268,"Studios",0,"No","Yes","Parking, Finding and reaching the entrance, Reception area, Doorways, Changing facilities, Activity areas, Toilets, Social areas, Spectator areas, Emergency exits",null,"Operational","Registered Membership use","Commercial","Local Authority (in house)",2015,"No","n/a","n/a","2017-01-25","2017-01-25","n/a","n/a","E00110480","E01021750","E02004542","E14000693","Epping Forest","E05004151","Chigwell Village","E07000072","Epping Forest","E10000012","Essex","CSP018","Active Essex","E15000006","Eastern",544842.6,195644.9,51.640960999999997,9.1797000000000004E-2]
["ONGAR LEISURE CENTRE","Y",1003759,null,"The Gables","Ongar","CM5 0GA","Studio","Studio",4073426,"Studios",1,"Yes","Yes","Parking, Finding and reaching the entrance, Reception area, Doorways, Changing facilities, Activity areas, Toilets, Emergency exits",null,"Operational","Pay and Play","Local Authority","Commercial Management",2006,"No","n/a","n/a","2017-02-13","2017-02-13","n/a","n/a","E00110757","E01021802","E02004530","E14000594","Brentwood and Ongar","E05004172","Shelley","E07000072","Epping Forest","E10000012","Essex","CSP018","Active Essex","E15000006","Eastern",555382.25,204281.8,51.715746000000003,0.24782899999999999]
["ONGAR LEISURE CENTRE","Y",1003759,null,"The Gables","Ongar","CM5 0GA","Studio","Studio",30001470,"Studios",1,"Yes","Yes","Parking, Finding and reaching the entrance, Reception area, Doorways, Changing facilities, Activity areas, Toilets, Emergency exits",null,"Operational","Pay and Play","Local Authority","Commercial Management",2006,"No","n/a","n/a","2017-02-13","2017-02-13","n/a","n/a","E00110757","E01021802","E02004530","E14000594","Brentwood and Ongar","E05004172","Shelley","E07000072","Epping Forest","E10000012","Essex","CSP018","Active Essex","E15000006","Eastern",555382.25,204281.8,51.715746000000003,0.24782899999999999]
["PRO SW GYM","N",1044756,"Sterling House","Langston Road","Loughton","IG10 3TS","Studio","Studio",4113421,"Studios",1,"Yes","Yes","Parking, Reception area, Doorways, Activity areas, Emergency exits",null,"Operational","Registered Membership use","Commercial","Commercial Management",2011,"No","n/a","n/a","2017-01-09","2017-01-09","n/a","n/a","E00110612","E01021776","E02004537","E14000693","Epping Forest","E05004160","Loughton Broadway","E07000072","Epping Forest","E10000012","Essex","CSP018","Active Essex","E15000006","Eastern",544483.16,196085.66,51.645012999999999,8.6788000000000004E-2]
["WALTHAM ABBEY SWIMMING POOL","Y",1003781,null,"Roundhills","Waltham Abbey","EN9 1UP","Studio","Studio",4071274,"Studios",1,"Yes","Yes","Parking, Finding and reaching the entrance, Reception area, Doorways, Changing facilities, Activity areas, Toilets, Social areas, Emergency exits",null,"Operational","Registered Membership use","Local Authority","Commercial Management",2006,"No","n/a","n/a","2017-01-19","2017-01-19","n/a","n/a","E00110802","E01021808","E02004534","E14000693","Epping Forest","E05004175","Waltham Abbey Honey Lane","E07000072","Epping Forest","E10000012","Essex","CSP018","Active Essex","E15000006","Eastern",538850,199956,51.681209000000003,6.9649999999999998E-3]

{"sheet":"Health and Fitness","index":4,"n_rows":17,"n_cols":47,"rows_kept":17,"cut":false,"hidden":false,"merged":[]}
["Site Name","Site Id","Building Name or Number","Community Use","Thoroughfare","Post Town"," Post Code","Facility Type","Facility Sub Type","Facility Id","Unit","Number","Changing Rooms","Disability","Disability Details","Disability Notes","Facility Status","Access Type","Ownership Type","Management Type","Year Built","Refurbished","Year Refurbished","Closed Date","Last Updated Date","Last Full Audit Date","UPRN","TOID","Output Area Code","Lower Super Output Area Code","Middle Super Output Area Code","Parliamentary Constituency Code","Parliamentary Constituency Name","Ward Code","Ward Name","Local Authority Code","Local Authority Name","County Code","County Name","CSP Code","CSP Name","Region Code","Region Name","Easting","Northing","Latitude","Longitude"]
["CHIGWELL SCHOOL",1204104,null,"N","High Road","Chigwell","IG7 6QF","Health and Fitness Suite","Health and Fitness Suite",2212881,"Stations",8,"Yes","Yes","Parking, Finding and reaching the entrance, Reception area, Doorways, Changing facilities, Activity areas, Toilets, Emergency exits",null,"Operational","Private Use","Other Independent School","School/College/University (in house)",1989,"No","n/a","n/a","2016-09-15","2016-09-15","n/a","n/a","E00110481","E01021750","E02004542","E14000693","Epping Forest","E05004151","Chigwell Village","E07000072","Epping Forest","E10000012","Essex","CSP018","Active Essex","E15000006","Eastern",544151,193880,51.625279999999997,8.1084000000000003E-2]
["DAVENANT FOUNDATION SCHOOL",1204252,null,"N","Chester Road","Loughton","IG10 2LD","Health and Fitness Suite","Health and Fitness Suite",2039838,"Stations",16,"Yes","Yes","Parking, Finding and reaching the entrance, Reception area, Doorways, Changing facilities, Activity areas, Toilets, Emergency exits","Activity Areas: Hoist available for Swimming Pool.","Operational","Private Use","Academies","School/College/University (in house)",1999,"No","n/a","n/a","2016-11-28","2016-11-28","n/a","n/a","E00110613","E01021774","E02004537","E14000693","Epping Forest","E05004160","Loughton Broadway","E07000072","Epping Forest","E10000012","Essex","CSP018","Active Essex","E15000006","Eastern",544283.1,198030.7,51.662540999999997,8.4700999999999999E-2]
["DAVID LLOYD CLUB (CHIGWELL)",1000023,null,"N","Roding Lane","Buckhurst Hill","IG9 6BJ","Health and Fitness Suite","Health and Fitness Suite",2014798,"Stations",145,"Yes","Yes","Parking, Finding and reaching the entrance, Reception area, Doorways, Changing facilities, Activity areas, Toilets, Social areas, Emergency exits","Parking: 10 bays","Operational","Registered Membership use","Commercial","Commercial Management",1992,"Yes",2014,"n/a","2016-12-30","2016-12-30","n/a","n/a","E00110480","E01021750","E02004542","E14000693","Epping Forest","E05004151","Chigwell Village","E07000072","Epping Forest","E10000012","Essex","CSP018","Active Essex","E15000006","Eastern",542871.72,194263.49,51.629052000000001,6.2771999999999994E-2]
["EPPING FOREST COLLEGE",1204720,null,"N","Borders Lane","Loughton","IG10 3SA","Health and Fitness Suite","Health and Fitness Suite",2081634,"Stations",15,"Yes","Yes","Parking, Finding and reaching the entrance, Reception area, Doorways, Activity areas, Toilets, Emergency exits",null,"Operational","Private Use","Further Education","School/College/University (in house)",2007,"No","n/a","n/a","2016-12-05","2016-12-05","n/a","n/a","E00170069","E01021790","E02004538","E14000693","Epping Forest","E05004165","Loughton St Mary's","E07000072","Epping Forest","E10000012","Essex","CSP018","Active Essex","E15000006","Eastern",543687.5,196438.7,51.648389000000002,7.5441999999999995E-2]
["EPPING SPORTS CENTRE",1003733,25,"Y","Hemnall Street","Epping","CM16 4LU","Health and Fitness Suite","Health and Fitness Suite",2017475,"Stations",46,"Yes","Yes","Parking, Finding and reaching the entrance, Reception area, Doorways, Changing facilities, Activity areas, Toilets, Emergency exits",null,"Operational","Pay and Play","Local Authority","Commercial Management",1970,"Yes",2006,"n/a","2017-03-14","2017-03-14","n/a","n/a","E00110509","E01021758","E02004532","E14000693","Epping Forest","E05004153","Epping Hemnall","E07000072","Epping Forest","E10000012","Essex","CSP018","Active Essex","E15000006","Eastern",545887.69999999995,201811.65,51.696100000000001,0.109462]
["KING HAROLD ACADEMY SPORTS CENTRE",1003780,null,"N","Broomstick Hall Road","Waltham Abbey","EN9 1LF","Health and Fitness Suite","Health and Fitness Suite",2017504,"Stations",20,"Yes","Not Known",null,null,"Operational","Private Use","Academies","Not Known",1985,"No","n/a","n/a","2017-03-29","2017-03-29","n/a","n/a","E00110783","E01021807","E02004534","E14000693","Epping Forest","E05004175","Waltham Abbey Honey Lane","E07000072","Epping Forest","E10000012","Essex","CSP018","Active Essex","E15000006","Eastern",539530,200922,51.689720999999999,1.7180000000000001E-2]
["KRUNCH GYM",1038033,"Ability House 121","N","Brooker Road","Waltham Abbey","EN9 1JH","Health and Fitness Suite","Health and Fitness Suite",2080459,"Stations",91,"Yes","Yes","Parking, Finding and reaching the entrance, Reception area, Doorways, Changing facilities, Activity areas, Toilets, Social areas, Emergency exits",null,"Operational","Registered Membership use","Commercial","Commercial Management",2008,"No","n/a","n/a","2017-03-27","2017-03-27","n/a","n/a","E00110844","E01021817","E02004534","E14000693","Epping Forest","E05004178","Waltham Abbey South West","E07000072","Epping Forest","E10000012","Essex","CSP018","Active Essex","E15000006","Eastern",538104.86,200053.88,51.682271999999998,-3.7680000000000001E-3]
["LOUGHTON LEISURE CENTRE",1003751,null,"Y","Traps Hill","Loughton","IG10 1SZ","Health and Fitness Suite","Health and Fitness Suite",2017485,"Stations",90,"Yes","Yes","Parking, Finding and reaching the entrance, Reception area, Doorways, Changing facilities, Activity areas, Toilets, Social areas, Spectator areas, Emergency exits",null,"Operational","Pay and Play","Local Authority","Commercial Management",2003,"Yes",2011,"n/a","2017-03-02","2017-03-02","n/a","n/a","E00110693","E01021791","E02004538","E14000693","Epping Forest","E05004165","Loughton St Mary's","E07000072","Epping Forest","E10000012","Essex","CSP018","Active Essex","E15000006","Eastern",542462.63,196413.5,51.648474,5.774E-2]
["MARRIOTT LEISURE CLUB (WALTHAM ABBEY)",1001420,null,"N","Old Shire Lane","Waltham Abbey","EN9 3LX","Health and Fitness Suite","Health and Fitness Suite",2016079,"Stations",18,"Yes","Yes","Parking, Finding and reaching the entrance, Reception area, Doorways, Changing facilities, Activity areas, Toilets, Emergency exits",null,"Operational","Registered Membership use","Commercial","Commercial Management",1988,"Yes",2011,"n/a","2017-06-21","2016-02-11","n/a","n/a","E00110782","E01021810","E02004534","E14000693","Epping Forest","E05004175","Waltham Abbey Honey Lane","E07000072","Epping Forest","E10000012","Essex","CSP018","Active Essex","E15000006","Eastern",540323,200031,51.681516999999999,2.8285999999999999E-2]
["METROPOLITAN POLICE (CHIGWELL SPORTS CLUB)",1036199,null,"N","High Road","Chigwell","IG7 6BD","Health and Fitness Suite","Health and Fitness Suite",2073269,"Stations",11,"Yes","Yes","Parking, Finding and reaching the entrance, Reception area, Doorways, Changing facilities, Activity areas, Toilets, Social areas, Emergency exits",null,"Operational","Sports Club / Community Association","Government","Sport Club",1986,"Yes",2003,"n/a","2016-10-10","2016-10-10","n/a","n/a","E00110480","E01021750","E02004542","E14000693","Epping Forest","E05004151","Chigwell Village","E07000072","Epping Forest","E10000012","Essex","CSP018","Active Essex","E15000006","Eastern",543807,193823,51.624856000000001,7.6093999999999995E-2]
["Nuffield Health Chigwell Fitness & Wellbeing Gym",1000562,"Woolston Manor","N","Abridge Road","Chigwell","IG7 6BX","Health and Fitness Suite","Health and Fitness Suite",2015296,"Stations",150,"Yes","Yes","Parking, Finding and reaching the entrance, Reception area, Doorways, Changing facilities, Activity areas, Toilets, Social areas, Spectator areas, Emergency exits",null,"Operational","Registered Membership use","Commercial","Commercial Management",2004,"Yes",2011,"n/a","2017-01-25","2017-01-25","n/a","n/a","E00110480","E01021750","E02004542","E14000693","Epping Forest","E05004151","Chigwell Village","E07000072","Epping Forest","E10000012","Essex","CSP018","Active Essex","E15000006","Eastern",544842.6,195644.9,51.640960999999997,9.1797000000000004E-2]
["ONGAR LEISURE CENTRE",1003759,null,"Y","The Gables","Ongar","CM5 0GA","Health and Fitness Suite","Health and Fitness Suite",2017492,"Stations",40,"Yes","Yes","Parking, Finding and reaching the entrance, Reception area, Doorways, Changing facilities, Activity areas, Toilets, Emergency exits",null,"Operational","Pay and Play","Local Authority","Commercial Management",1979,"Yes",2011,"n/a","2017-02-13","2017-02-13","n/a","n/a","E00110757","E01021802","E02004530","E14000594","Brentwood and Ongar","E05004172","Shelley","E07000072","Epping Forest","E10000012","Essex","CSP018","Active Essex","E15000006","Eastern",555382.25,204281.8,51.715746000000003,0.24782899999999999]
["PRO SW GYM",1044756,"Sterling House","N","Langston Road","Loughton","IG10 3TS","Health and Fitness Suite","Health and Fitness Suite",4113420,"Stations",24,"Yes","Yes","Parking, Reception area, Doorways, Activity areas, Emergency exits",null,"Operational","Registered Membership use","Commercial","Commercial Management",2011,"No","n/a","n/a","2017-01-09","2017-01-09","n/a","n/a","E00110612","E01021776","E02004537","E14000693","Epping Forest","E05004160","Loughton Broadway","E07000072","Epping Forest","E10000012","Essex","CSP018","Active Essex","E15000006","Eastern",544483.16,196085.66,51.645012999999999,8.6788000000000004E-2]
["WALTHAM ABBEY SWIMMING POOL",1003781,null,"Y","Roundhills","Waltham Abbey","EN9 1UP","Health and Fitness Suite","Health and Fitness Suite",2017505,"Stations",50,"Yes","Yes","Parking, Finding and reaching the entrance, Reception area, Doorways, Changing facilities, Activity areas, Toilets, Social areas, Emergency exits",null,"Operational","Pay and Play","Local Authority","Commercial Management",1982,"Yes",2011,"n/a","2017-01-19","2017-01-19","n/a","n/a","E00110802","E01021808","E02004534","E14000693","Epping Forest","E05004175","Waltham Abbey Honey Lane","E07000072","Epping Forest","E10000012","Essex","CSP018","Active Essex","E15000006","Eastern",538850,199956,51.681209000000003,6.9649999999999998E-3]
["WEST HATCH HIGH SCHOOL ACADEMY",1204076,null,"N","High Road","Chigwell","IG7 5BT","Health and Fitness Suite","Health and Fitness Suite",2078975,"Stations",6,"Yes","Yes","Parking, Finding and reaching the entrance, Reception area, Doorways, Activity areas, Emergency exits","Activity Areas: Hoist for Swimming Pool is due for installation.","Operational","Private Use","Academies","School/College/University (in house)",2007,"Yes",2009,"n/a","2016-11-22","2016-11-22","n/a","n/a","E00110485","E01021752","E02004542","E14000693","Epping Forest","E05004151","Chigwell Village","E07000072","Epping Forest","E10000012","Essex","CSP018","Active Essex","E15000006","Eastern",542935.30000000005,192420.8,51.612478000000003,6.2938999999999995E-2]
["WOOLSTON MANOR GOLF AND COUNTRY CLUB",1041754,null,"N","Abridge Road","Chigwell","IG7 6BX","Health and Fitness Suite","Health and Fitness Suite",4106588,"Stations",6,"Yes","Yes","Parking, Finding and reaching the entrance, Reception area, Doorways, Changing facilities, Activity areas, Toilets, Social areas, Emergency exits",null,"Operational","Registered Membership use","Commercial","Commercial Management",2008,"No","n/a","n/a","2016-11-07","2016-11-07","n/a","n/a","E00110480","E01021750","E02004542","E14000693","Epping Forest","E05004151","Chigwell Village","E07000072","Epping Forest","E10000012","Essex","CSP018","Active Essex","E15000006","Eastern",544970.22,195794.98,51.642276000000003,9.3701999999999994E-2]

{"sheet":"Sports Halls","index":5,"n_rows":19,"n_cols":47,"rows_kept":19,"cut":false,"hidden":false,"merged":[]}
["Site Name","Community Use","Site Id","Building Name or Number","Thoroughfare","Post Town"," Post Code","Facility Type","Facility Sub Type","Facility Id","Unit","Number","Changing Rooms","Disability","Disability Details","Disability Notes","Facility Status","Access Type","Ownership Type","Management Type","Year Built","Refurbished","Year Refurbished","Closed Date","Last Updated Date","Last Full Audit Date","UPRN","TOID","Output Area Code","Lower Super Output Area Code","Middle Super Output Area Code","Parliamentary Constituency Code","Parliamentary Constituency Name","Ward Code","Ward Name","Local Authority Code","Local Authority Name","County Code","County Name","CSP Code","CSP Name","Region Code","Region Name","Easting","Northing","Latitude","Longitude"]
["ABRIDGE VILLAGE HALL","Y",6021140,39,"Ongar Road","Romford","RM4 1UH","Sports Hall","Activity Hall",2090124,"Badminton courts",1,"Yes","Yes","Parking, Finding and reaching the entrance, Doorways, Activity areas, Toilets, Social areas, Emergency exits",null,"Operational","Sports Club / Community Association","Other","Trust",1993,"No","n/a","n/a","2016-10-07","2016-10-07","n/a","n/a","E00110592","E01021770","E02004536","E14000594","Brentwood and Ongar","E05004158","Lambourne","E07000072","Epping Forest","E10000012","Essex","CSP018","Active Essex","E15000006","Eastern",546988,197108,51.653551,0.123393]
["CHIGWELL SCHOOL","N",1204104,null,"High Road","Chigwell","IG7 6QF","Sports Hall","Main",2212886,"Badminton courts",3,"Yes","Yes","Parking, Finding and reaching the entrance, Reception area, Doorways, Changing facilities, Activity areas, Toilets, Emergency exits",null,"Operational","Sports Club / Community Association","Other Independent School","School/College/University (in house)",1989,"No","n/a","n/a","2016-09-15","2016-09-15","n/a","n/a","E00110481","E01021750","E02004542","E14000693","Epping Forest","E05004151","Chigwell Village","E07000072","Epping Forest","E10000012","Essex","CSP018","Active Essex","E15000006","Eastern",544151,193880,51.625279999999997,8.1084000000000003E-2]
["CHIGWELL SCHOOL","N",1204104,null,"High Road","Chigwell","IG7 6QF","Sports Hall","Activity Hall",2212887,"Badminton courts",1,"Yes","Yes","Parking, Finding and reaching the entrance, Reception area, Doorways, Changing facilities, Activity areas, Toilets, Emergency exits",null,"Operational","Sports Club / Community Association","Other Independent School","School/College/University (in house)",1955,"No","n/a","n/a","2016-09-15","2016-09-15","n/a","n/a","E00110481","E01021750","E02004542","E14000693","Epping Forest","E05004151","Chigwell Village","E07000072","Epping Forest","E10000012","Essex","CSP018","Active Essex","E15000006","Eastern",544151,193880,51.625279999999997,8.1084000000000003E-2]
["DAVENANT FOUNDATION SCHOOL","N",1204252,null,"Chester Road","Loughton","IG10 2LD","Sports Hall","Main",2213537,"Badminton courts",3,"Yes","Yes","Parking, Finding and reaching the entrance, Reception area, Doorways, Changing facilities, Activity areas, Toilets, Emergency exits","Activity Areas: Hoist available for Swimming Pool.","Operational","Sports Club / Community Association","Academies","School/College/University (in house)",1999,"No","n/a","n/a","2016-11-28","2016-11-28","n/a","n/a","E00110613","E01021774","E02004537","E14000693","Epping Forest","E05004160","Loughton Broadway","E07000072","Epping Forest","E10000012","Essex","CSP018","Active Essex","E15000006","Eastern",544283.1,198030.7,51.662540999999997,8.4700999999999999E-2]
["DAVENANT FOUNDATION SCHOOL","N",1204252,null,"Chester Road","Loughton","IG10 2LD","Sports Hall","Activity Hall",2213538,"Badminton courts",1,"Yes","Yes","Parking, Finding and reaching the entrance, Reception area, Doorways, Changing facilities, Activity areas, Toilets, Emergency exits","Activity Areas: Hoist available for Swimming Pool.","Operational","Sports Club / Community Association","Academies","School/College/University (in house)",1999,"Yes",2003,"n/a","2016-11-28","2016-11-28","n/a","n/a","E00110613","E01021774","E02004537","E14000693","Epping Forest","E05004160","Loughton Broadway","E07000072","Epping Forest","E10000012","Essex","CSP018","Active Essex","E15000006","Eastern",544283.1,198030.7,51.662540999999997,8.4700999999999999E-2]
["DAVENANT FOUNDATION SCHOOL","N",1204252,null,"Chester Road","Loughton","IG10 2LD","Sports Hall","Activity Hall",2213539,"Badminton courts",1,"Yes","Yes","Parking, Finding and reaching the entrance, Reception area, Doorways, Changing facilities, Activity areas, Toilets, Emergency exits","Activity Areas: Hoist available for Swimming Pool.","Operational","Sports Club / Community Association","Academies","School/College/University (in house)",2000,"Yes",2005,"n/a","2016-11-28","2016-11-28","n/a","n/a","E00110613","E01021774","E02004537","E14000693","Epping Forest","E05004160","Loughton Broadway","E07000072","Epping Forest","E10000012","Essex","CSP018","Active Essex","E15000006","Eastern",544283.1,198030.7,51.662540999999997,8.4700999999999999E-2]
["DAVID LLOYD CLUB (CHIGWELL)","N",1000023,null,"Roding Lane","Buckhurst Hill","IG9 6BJ","Sports Hall","Activity Hall",2000043,"Badminton courts",2,"Yes","Yes","Parking, Finding and reaching the entrance, Reception area, Doorways, Changing facilities, Activity areas, Toilets, Social areas, Emergency exits","Parking: 10 bays","Operational","Registered Membership use","Commercial","Commercial Management",2002,"Yes",2014,"n/a","2016-12-30","2016-12-30","n/a","n/a","E00110480","E01021750","E02004542","E14000693","Epping Forest","E05004151","Chigwell Village","E07000072","Epping Forest","E10000012","Essex","CSP018","Active Essex","E15000006","Eastern",542871.72,194263.49,51.629052000000001,6.2771999999999994E-2]
["DEBDEN PARK HIGH SCHOOL","N",1008866,null,"Willingale Road","Loughton","IG10 2BQ","Sports Hall","Main",2007558,"Badminton courts",4,"Yes","Yes","Parking, Finding and reaching the entrance, Reception area, Doorways, Changing facilities, Activity areas, Toilets, Emergency exits",null,"Operational","Pay and Play","Academies","Other",2001,"Yes",2006,"n/a","2016-08-22","2016-08-22","n/a","n/a","E00110611","E01021775","E02004537","E14000693","Epping Forest","E05004160","Loughton Broadway","E07000072","Epping Forest","E10000012","Essex","CSP018","Active Essex","E15000006","Eastern",544585,197047,51.653624999999998,8.8655999999999999E-2]
["EPPING SPORTS CENTRE","Y",1003733,25,"Hemnall Street","Epping","CM16 4LU","Sports Hall","Main",2002987,"Badminton courts",4,"Yes","Yes","Parking, Finding and reaching the entrance, Reception area, Doorways, Changing facilities, Activity areas, Toilets, Emergency exits",null,"Operational","Pay and Play","Local Authority","Commercial Management",1970,"No","n/a","n/a","2017-03-14","2017-03-14","n/a","n/a","E00110509","E01021758","E02004532","E14000693","Epping Forest","E05004153","Epping Hemnall","E07000072","Epping Forest","E10000012","Essex","CSP018","Active Essex","E15000006","Eastern",545887.69999999995,201811.65,51.696100000000001,0.109462]
["EPPING ST JOHN'S","N",1203746,null,"Bury Lane","Epping","CM16 5JB","Sports Hall","Main",2211464,"Badminton courts",4,"Yes","Yes","Parking, Finding and reaching the entrance, Reception area, Doorways, Activity areas, Toilets, Emergency exits",null,"Operational","Sports Club / Community Association","Voluntary Controlled School","School/College/University (in house)",1921,"No","n/a","n/a","2016-11-22","2016-11-22","n/a","n/a","E00110547","E01021763","E02004531","E14000693","Epping Forest","E05004154","Epping Lindsey and Thornwood Common","E07000072","Epping Forest","E10000012","Essex","CSP018","Active Essex","E15000006","Eastern",545397,202114,0,0]
["EPPING ST JOHN'S","N",1203746,null,"Bury Lane","Epping","CM16 5JB","Sports Hall","Activity Hall",2211465,"Badminton courts",0,"Yes","Yes","Parking, Finding and reaching the entrance, Reception area, Doorways, Activity areas, Toilets, Emergency exits",null,"Operational","Sports Club / Community Association","Voluntary Controlled School","School/College/University (in house)",1921,"No","n/a","n/a","2016-11-22","2016-11-22","n/a","n/a","E00110547","E01021763","E02004531","E14000693","Epping Forest","E05004154","Epping Lindsey and Thornwood Common","E07000072","Epping Forest","E10000012","Essex","CSP018","Active Essex","E15000006","Eastern",545397,202114,0,0]
["GURU GOBIND SINGH KHALSA COLLEGE","N",1203672,null,"Roding Lane","Chigwell","IG7 6BQ","Sports Hall","Main",2211189,"Badminton courts",3,"Yes","Yes","Finding and reaching the entrance, Reception area, Doorways, Activity areas, Social areas, Spectator areas, Emergency exits",null,"Operational","Sports Club / Community Association","Other Independent School","School/College/University (in house)",1938,"No","n/a","n/a","2017-03-20","2017-03-20","n/a","n/a","E00110480","E01021750","E02004542","E14000693","Epping Forest","E05004151","Chigwell Village","E07000072","Epping Forest","E10000012","Essex","CSP018","Active Essex","E15000006","Eastern",542979,194070,51.627285999999998,6.4241999999999994E-2]
["KING HAROLD ACADEMY SPORTS CENTRE","Y",1003780,null,"Broomstick Hall Road","Waltham Abbey","EN9 1LF","Sports Hall","Main",2003043,"Badminton courts",5,"Yes","Not Known",null,null,"Operational","Pay and Play","Academies","Not Known",1972,"Yes",2003,"n/a","2017-03-29","2017-03-29","n/a","n/a","E00110783","E01021807","E02004534","E14000693","Epping Forest","E05004175","Waltham Abbey Honey Lane","E07000072","Epping Forest","E10000012","Essex","CSP018","Active Essex","E15000006","Eastern",539530,200922,51.689720999999999,1.7180000000000001E-2]
["ONGAR LEISURE CENTRE","Y",1003759,null,"The Gables","Ongar","CM5 0GA","Sports Hall","Main",2003018,"Badminton courts",4,"Yes","Yes","Parking, Finding and reaching the entrance, Reception area, Doorways, Changing facilities, Activity areas, Toilets, Emergency exits",null,"Operational","Pay and Play","Local Authority","Commercial Management",1977,"No","n/a","n/a","2017-02-13","2017-02-13","n/a","n/a","E00110757","E01021802","E02004530","E14000594","Brentwood and Ongar","E05004172","Shelley","E07000072","Epping Forest","E10000012","Essex","CSP018","Active Essex","E15000006","Eastern",555382.25,204281.8,51.715746000000003,0.24782899999999999]
["RODING VALLEY HIGH SCHOOL","N",1204080,null,"Alderton Hill","Loughton","IG10 3JA","Sports Hall","Main",2212748,"Badminton courts",4,"Yes","Yes","Parking, Finding and reaching the entrance, Reception area, Doorways, Changing facilities, Activity areas, Toilets, Emergency exits","Parking: 2 disabled parking bays.","Operational","Sports Club / Community Association","Community school","School/College/University (in house)",1993,"Yes",2006,"n/a","2016-06-28","2016-06-28","n/a","n/a","E00110689","E01021791","E02004538","E14000693","Epping Forest","E05004165","Loughton St Mary's","E07000072","Epping Forest","E10000012","Essex","CSP018","Active Essex","E15000006","Eastern",542360,195842.6,51.643369999999997,5.6024999999999998E-2]
["RODING VALLEY HIGH SCHOOL","N",1204080,null,"Alderton Hill","Loughton","IG10 3JA","Sports Hall","Activity Hall",2212749,"Badminton courts",2,"Yes","Yes","Parking, Finding and reaching the entrance, Reception area, Doorways, Changing facilities, Activity areas, Toilets, Emergency exits","Parking: 2 disabled parking bays.","Operational","Sports Club / Community Association","Community school","School/College/University (in house)",1992,"No","n/a","n/a","2016-06-28","2016-06-28","n/a","n/a","E00110689","E01021791","E02004538","E14000693","Epping Forest","E05004165","Loughton St Mary's","E07000072","Epping Forest","E10000012","Essex","CSP018","Active Essex","E15000006","Eastern",542360,195842.6,51.643369999999997,5.6024999999999998E-2]
["THE ALLNUTS HALL","N",1043591,null,"Allnutts Road","Epping","CM16 7BD","Sports Hall","Activity Hall",4110793,"Badminton courts",0,"No","Yes","Finding and reaching the entrance, Doorways, Activity areas, Emergency exits",null,"Operational","Pay and Play","Community Organisation","Community Organisation","n/a","Not Known","n/a","n/a","2011-07-08","2011-07-08","n/a","n/a","E00110521","E01021759","E02004532","E14000693","Epping Forest","E05004153","Epping Hemnall","E07000072","Epping Forest","E10000012","Essex","CSP018","Active Essex","E15000006","Eastern",546187,200990,51.688639000000002,0.11344600000000001]
["WEST HATCH HIGH SCHOOL ACADEMY","N",1204076,null,"High Road","Chigwell","IG7 5BT","Sports Hall","Activity Hall",2212734,"Badminton courts",1,"Yes","Yes","Parking, Finding and reaching the entrance, Reception area, Doorways, Activity areas, Emergency exits","Activity Areas: Hoist for Swimming Pool is due for installation.","Operational","Sports Club / Community Association","Academies","School/College/University (in house)",1957,"No","n/a","n/a","2016-11-22","2016-11-22","n/a","n/a","E00110485","E01021752","E02004542","E14000693","Epping Forest","E05004151","Chigwell Village","E07000072","Epping Forest","E10000012","Essex","CSP018","Active Essex","E15000006","Eastern",542935.30000000005,192420.8,51.612478000000003,6.2938999999999995E-2]

{"sheet":"Squash","index":6,"n_rows":6,"n_cols":47,"rows_kept":6,"cut":false,"hidden":false,"merged":[]}
["Site Name","Community Use","Site Id","Building Name or Number","Thoroughfare","Post Town"," Post Code","Facility Type","Facility Sub Type","Facility Id","Unit","Number","Changing Rooms","Disability","Disability Details","Disability Notes","Facility Status","Access Type","Ownership Type","Management Type","Year Built","Refurbished","Year Refurbished","Closed Date","Last Updated Date","Last Full Audit Date","UPRN","TOID","Output Area Code","Lower Super Output Area Code","Middle Super Output Area Code","Parliamentary Constituency Code","Parliamentary Constituency Name","Ward Code","Ward Name","Local Authority Code","Local Authority Name","County Code","County Name","CSP Code","CSP Name","Region Code","Region Name","Easting","Northing","Latitude","Longitude"]
["EPPING SPORTS CENTRE","Y",1003733,25,"Hemnall Street","Epping","CM16 4LU","Squash Courts","Normal",4036865,"Courts",3,"Yes","Yes","Parking, Finding and reaching the entrance, Reception area, Doorways, Changing facilities, Activity areas, Toilets, Emergency exits",null,"Operational","Pay and Play","Local Authority","Commercial Management",1970,"Yes",2006,"n/a","2017-03-14","2017-03-14","n/a","n/a","E00110509","E01021758","E02004532","E14000693","Epping Forest","E05004153","Epping Hemnall","E07000072","Epping Forest","E10000012","Essex","CSP018","Active Essex","E15000006","Eastern",545887.69999999995,201811.65,51.696100000000001,0.109462]
["EPPING SPORTS CENTRE","Y",1003733,25,"Hemnall Street","Epping","CM16 4LU","Squash Courts","Glass-backed",4040142,"Courts",1,"Yes","Yes","Parking, Finding and reaching the entrance, Reception area, Doorways, Changing facilities, Activity areas, Toilets, Emergency exits",null,"Operational","Pay and Play","Local Authority","Commercial Management",1970,"Yes",2006,"n/a","2017-03-14","2017-03-14","n/a","n/a","E00110509","E01021758","E02004532","E14000693","Epping Forest","E05004153","Epping Hemnall","E07000072","Epping Forest","E10000012","Essex","CSP018","Active Essex","E15000006","Eastern",545887.69999999995,201811.65,51.696100000000001,0.109462]
["JUBILEE PARK PAVILION","Y",1038126,null,"Love Lane","Ongar","CM5 9BL","Squash Courts","Normal",4080867,"Courts",2,"Yes","Yes","Finding and reaching the entrance, Doorways, Activity areas, Social areas, Emergency exits",null,"Operational","Sports Club / Community Association","Local Authority","Local Authority (in house)",1976,"No","n/a","n/a","2017-05-30","2017-05-30","n/a","n/a","E00110495","E01021755","E02004530","E14000594","Brentwood and Ongar","E05004152","Chipping Ongar, Greensted and Marden Ash","E07000072","Epping Forest","E10000012","Essex","CSP018","Active Essex","E15000006","Eastern",555409.81000000006,203483.53,51.708567000000002,0.24787200000000001]
["KING HAROLD ACADEMY SPORTS CENTRE","Y",1003780,null,"Broomstick Hall Road","Waltham Abbey","EN9 1LF","Squash Courts","Normal",4036880,"Courts",2,"Yes","Not Known",null,null,"Operational","Private Use","Academies","Not Known",1972,"No","n/a","n/a","2017-03-29","2017-03-29","n/a","n/a","E00110783","E01021807","E02004534","E14000693","Epping Forest","E05004175","Waltham Abbey Honey Lane","E07000072","Epping Forest","E10000012","Essex","CSP018","Active Essex","E15000006","Eastern",539530,200922,51.689720999999999,1.7180000000000001E-2]
["METROPOLITAN POLICE (CHIGWELL SPORTS CLUB)","N",1036199,null,"High Road","Chigwell","IG7 6BD","Squash Courts","Normal",4073290,"Courts",2,"Yes","Yes","Parking, Finding and reaching the entrance, Reception area, Doorways, Changing facilities, Activity areas, Toilets, Social areas, Emergency exits",null,"Operational","Sports Club / Community Association","Government","Sport Club",1986,"No","n/a","n/a","2016-10-10","2016-10-10","n/a","n/a","E00110480","E01021750","E02004542","E14000693","Epping Forest","E05004151","Chigwell Village","E07000072","Epping Forest","E10000012","Essex","CSP018","Active Essex","E15000006","Eastern",543807,193823,51.624856000000001,7.6093999999999995E-2]

{"sheet":"Indoor Bowls","index":7,"n_rows":2,"n_cols":46,"rows_kept":2,"cut":false,"hidden":false,"merged":[]}
["Site Name","Site Id","Building Name or Number","Thoroughfare","Post Town"," Post Code","Facility Type","Facility Sub Type","Facility Id","Unit","Number","Changing Rooms","Disability","Disability Details","Disability Notes","Facility Status","Access Type","Ownership Type","Management Type","Year Built","Refurbished","Year Refurbished","Closed Date","Last Updated Date","Last Full Audit Date","UPRN","TOID","Output Area Code","Lower Super Output Area Code","Middle Super Output Area Code","Parliamentary Constituency Code","Parliamentary Constituency Name","Ward Code","Ward Name","Local Authority Code","Local Authority Name","County Code","County Name","CSP Code","CSP Name","Region Code","Region Name","Easting","Northing","Latitude","Longitude"]
["DAVID LLOYD CLUB (CHIGWELL)",1000023,null,"Roding Lane","Buckhurst Hill","IG9 6BJ","Indoor Bowls","Indoor Bowls",2008861,"Rinks",7,"Yes","Yes","Parking, Finding and reaching the entrance, Reception area, Doorways, Changing facilities, Activity areas, Toilets, Social areas, Emergency exits","Parking: 10 bays","Operational","Registered Membership use","Commercial","Commercial Management",1992,"Yes",2004,"n/a","2016-12-30","2016-12-30","n/a","n/a","E00110480","E01021750","E02004542","E14000693","Epping Forest","E05004151","Chigwell Village","E07000072","Epping Forest","E10000012","Essex","CSP018","Active Essex","E15000006","Eastern",542871.72,194263.49,51.629052000000001,6.2771999999999994E-2]

{"sheet":"Gymnastics","index":8,"n_rows":3,"n_cols":47,"rows_kept":3,"cut":false,"hidden":false,"merged":[]}
["Site Name","Community Use","Site Id","Building Name or Number","Thoroughfare","Post Town"," Post Code","Facility Type","Facility Sub Type","Facility Id","Unit","Number","Changing Rooms","Disability","Disability Details","Disability Notes","Facility Status","Access Type","Ownership Type","Management Type","Year Built","Refurbished","Year Refurbished","Closed Date","Last Updated Date","Last Full Audit Date","UPRN","TOID","Output Area Code","Lower Super Output Area Code","Middle Super Output Area Code","Parliamentary Constituency Code","Parliamentary Constituency Name","Ward Code","Ward Name","Local Authority Code","Local Authority Name","County Code","County Name","CSP Code","CSP Name","Region Code","Region Name","Easting","Northing","Latitude","Longitude"]
["Casablanca Gym","Y",null,null,null,null,null,"Sports Hall","Gymnastics Hall",null,null,null,null,null,null,null,null,"Registered Membership use","Local Authority","Trust"]
["Epping Gymnastics Centre","Y",null,null,null,null,null,"Sports Hall","Gymnastics Hall",null,null,null,null,null,null,null,null,"Registered Membership use","Trust","Trust"]

{"sheet":"Facility Assessment","index":9,"n_rows":44,"n_cols":4,"rows_kept":44,"cut":false,"hidden":false,"merged":[[12,1,12,3]]}
[]
[null,"Epping Sports Centre"]
[null,"Facility Type","Level of provision","Quality (out of 5)"]
[null,"Reception area","Small but modern with barriers. Issues with crowding and access issues during peak time.",3]
[null,"Health and fitness suite","63 stations (17 of which are weights stations)",4]
[null,"Sports Hall","4 court sports hall, which is approaching end of life and suffering from water ingress. The facility has poor accessibility, with no disabled access",2]
[null,"Swimming Pool","None","NA"]
[null,"Studios","1 x aerobic studio (no spinning). This is ‘tired’ however will shortly be converted to an extended H&F suite",3]
[null,"Changing rooms","2 x dry",3]
[]
[]
[]
[null,"Loughton Leisure Centre"]
[null,"Facility Type","Level of provision","Quality (out of 5)"]
[null,"Reception area","Large and modern with barriers, with access to a café",4]
[null,"Health and fitness suite","63 stations – high quality and with plans for further expansion",4]
[null,"Sports Hall","N/A",2]
[null,"Swimming Pool","1 x 6 lane 25 m pool","Main pool – 4"]
[null,null,"1 x learner pool","Learner pool - 4"]
[null,"Studios","2 x studio, one of which is the ‘octagon’, used for community events",3]
[null,"Changing rooms","2 x dry and 1 x wet","Dry – 4"]
[null,null,null,"Wet - 3"]
[]
[null,"Ongar Leisure Centre"]
[null,"Facility Type","Level of provision","Quality (out of 5)"]
[null,"Reception area","Large and modern with barriers, with access to a café",4]
[null,"Health and fitness suite","63 stations – high quality and with plans for further expansion",4]
[null,"Sports Hall","None","N/A"]
[null,"Swimming Pool","1 x 6 lane 25 m pool",2]
[]
[null,"Studios","2 x studio, one of which is the ‘octagon’, used for community events",3]
[null,"Changing rooms","2 x dry and 1 x wet","Dry – 4"]
[null,null,null,"Wet - 3"]
[]
[null,"Waltham Abbey Swimming Pool"]
[null,"Facility Type","Level of provision","Quality (out of 5)"]
[null,"Reception area","Small but adequate",3]
[null,"Health and fitness suite","63 stations – poor quality and small",2]
[null,"Sports Hall","None",0]
[null,"Swimming Pool","1 x 6 lane 25 m pool","Main pool – 1"]
[null,null,"1 x learner pool","Learner pool - 1"]
[null,"Studios","2 x studio, one of which is the ‘octagon’, used for community events",3]
[null,"Changing rooms","2 x dry and 1 x wet","Dry – 4"]
[null,null,null,"Wet - 3"]

{"sheet":"Sheet1","index":10,"n_rows":12,"n_cols":7,"rows_kept":12,"cut":false,"hidden":true,"merged":[]}
[]
[]
[null,null,"Epping","Loughton","Ongar","Waltham Abbey"]
[null,"Reception area",{"$f":"'Facility Assessment'!D4","v":3},{"$f":"'Facility Assessment'!D15","v":4},3,3,{"$f":"AVERAGE(C4:F4)","v":3.25}]
[null,"Health and fitness suite",{"$f":"'Facility Assessment'!D5","v":4},5,4,2,{"$f":"AVERAGE(C5:F5)","v":3.75}]
[null,"Sports Hall",{"$f":"'Facility Assessment'!D6","v":2},{"$f":"'Facility Assessment'!D17","v":2},"N/A","NA",{"$f":"AVERAGE(C6:F6)","v":2}]
[null,"Swimming Pool - Main Pool",{"$f":"'Facility Assessment'!D7","v":"NA"},4,2,1,{"$f":"AVERAGE(C7:F7)","v":2.3333333333333335}]
[null,"Swimming Pool - Learner Pool",null,4,"NA",1,{"$f":"AVERAGE(C8:F8)","v":2.5}]
[null,"Studios",{"$f":"'Facility Assessment'!D8","v":3},{"$f":"'Facility Assessment'!D20","v":3},3,3,{"$f":"AVERAGE(C9:F9)","v":3}]
[null,"Changing rooms - Dry",{"$f":"'Facility Assessment'!D9","v":3},4,3,4,{"$f":"AVERAGE(C10:F10)","v":3.5}]
[null,"Changing rooms - Wet",null,3,3,3,{"$f":"AVERAGE(C11:F11)","v":3}]
[null,null,{"$f":"AVERAGE(C4:C11)","v":3},{"$f":"AVERAGE(D4:D11)","v":3.625},{"$f":"AVERAGE(E4:E11)","v":3},{"$f":"AVERAGE(F4:F11)","v":2.4285714285714284}]